2CCN - Level 2 Cost Centre Name,,9CCN - Level 9 Cost Centre Name,9CCC - Level 9 Cost Centre Code,9AN - Level 9 Account Name,9AC - Level 9 Account Code,Transaction Description,Date Paid,Transaction Reference,Analysed Amount,2AC - Level 2 Account Codes,Supplier Name,Supplier Code
Gloucester City Council,23UE,Business Transformation & Tech,RT700,Mobile Phones,5409,acct 5500388 28 x Galaxy A3,01/03/2016,414475,1831.48,NET,O2 Uk,16206Y
Gloucester City Council,23UE,Civica Contract Revs & Bens,RT250,Contracted Services,6970,DEC2015 pensions,01/03/2016,414459,12228.91,NET,Civica Uk Ltd,10841X
Gloucester City Council,23UE,Business Transformation & Tech,RT700,Computer Software <5000,5425,Embedded Viewer,02/03/2016,414227,1300,NET,Northgate Public Services Uk Ltd,08982S
Gloucester City Council,23UE,Business Transformation & Tech,RT700,Computer Software <5000,5425,Renewal Fee,02/03/2016,414214,550,NET,Ncc Group Security Services Ltd,15823M
Gloucester City Council,23UE,Business Transformation & Tech,RT700,Internet Service Provider Fees,5429,Blueyonder Charges Feb - Mar 16,02/03/2016,414519,80,NET,Virgin Media Payments Ltd,09376J
Gloucester City Council,23UE,Business Transformation & Tech,RT700,Internet Service Provider Fees,5429,Business Broadband 4 Feb-Mar 16,02/03/2016,414292,30,NET,Virgin Media Payments Ltd,09376J
Gloucester City Council,23UE,Business Transformation & Tech,RT700,Internet Service Provider Fees,5429,Cable Modem Charge,02/03/2016,414518,33,NET,Virgin Media Payments Ltd,09376J
Gloucester City Council,23UE,Business Transformation & Tech,RT700,Internet Service Provider Fees,5429,Charges Feb - Mar 16,02/03/2016,414296,39,NET,Virgin Media Payments Ltd,09376J
Gloucester City Council,23UE,Business Transformation & Tech,RT700,Mobile Phones,5409,Charges February 2016,02/03/2016,414299,34.35,NET,Everything Everywhere Ltd (T-Mobile),57543S
Gloucester City Council,23UE,Business Transformation & Tech,RT700,Mobile Phones,5409,Charges February 2016,02/03/2016,414300,18.6,NET,Everything Everywhere Ltd (T-Mobile),57543S
Gloucester City Council,23UE,Business Transformation & Tech,RT700,Telephones And Fax,5410,Call charges January 2016,02/03/2016,414191,3959.81,NET,Gamma Business Communications,10260A
Gloucester City Council,23UE,Business Transformation & Tech,RT700,Telephones And Fax,5410,Call Charges January 2016,02/03/2016,414293,2656.72,NET,Gamma Business Communications,10260A
Gloucester City Council,23UE,Business Transformation & Tech,RT700,Telephones And Fax,5410,Jan-16,02/03/2016,414450,979.08,NET,Everything Everywhere Ltd (T-Mobile),57543S
Gloucester City Council,23UE,Business Transformation & Tech,RT700,Telephones And Fax,5410,Line Rental Feb - Mar 2016,02/03/2016,414520,16.99,NET,Virgin Media Payments Ltd,09376J
Gloucester City Council,23UE,Cemeteries,HC300,Maint Of Grounds - General,3030,60 metres turf,02/03/2016,415082,150,NET,Aran Turf,56656L
Gloucester City Council,23UE,Green Garden Waste,HI105,Basic Pay - Temporary Staff,2751,Temporary staff w/e 12/02/2016,02/03/2016,415068,558,NET,One To One Recruitment,04752H
Gloucester City Council,23UE,Guildhall Bar And Caf�,LA210,Catering Provisions -Food,5110,Food,02/03/2016,415123,44.62,NET,Woodward Foodservice,10714F
Gloucester City Council,23UE,Guildhall Bar And Caf�,LA210,Catering Provisions -Food,5110,Food,02/03/2016,415124,4.76,NET,Total Produce Gloucester,12645E
Gloucester City Council,23UE,Guildhall Bar And Caf�,LA210,Catering Provisions -Food,5110,Food,02/03/2016,415125,4.76,NET,Total Produce Gloucester,12645E
Gloucester City Council,23UE,Guildhall Bar And Caf�,LA210,Catering Provisions -Food,5110,Food,02/03/2016,415138,103.68,NET,Woodward Foodservice,10714F
Gloucester City Council,23UE,Guildhall Bar And Caf�,LA210,Catering Provisions -Food,5110,Food,02/03/2016,415139,135.67,NET,Woodward Foodservice,10714F
Gloucester City Council,23UE,Guildhall Bar And Caf�,LA210,Catering Provisions -Food,5110,Food,02/03/2016,415140,213.28,NET,Woodward Foodservice,10714F
Gloucester City Council,23UE,Guildhall Bar And Caf�,LA210,Catering Provisions -Food,5110,Food,02/03/2016,415141,120.88,NET,Woodward Foodservice,10714F
Gloucester City Council,23UE,Guildhall Bar And Caf�,LA210,Catering Provisions -Food,5110,Milk,02/03/2016,415126,4.76,NET,Total Produce Gloucester,12645E
Gloucester City Council,23UE,Guildhall Bar And Caf�,LA210,Catering Provisions -Food,5110,Milk,02/03/2016,415127,4.76,NET,Total Produce Gloucester,12645E
Gloucester City Council,23UE,REDACTED,REDACTED,REDACTED,REDACTED,REDACTED,02/03/2016,REDACTED,272.72,NET,REDACTED,REDACTED
Gloucester City Council,23UE,REDACTED,REDACTED,REDACTED,REDACTED,REDACTED,02/03/2016,REDACTED,300,NET,REDACTED,REDACTED
Gloucester City Council,23UE,The Arbor,HC501,Catering Provisions -Food,5110,food,02/03/2016,415101,58.04,NET,Total Produce Gloucester,12645E
Gloucester City Council,23UE,The Arbor,HC501,Catering Provisions -Food,5110,Drinks,02/03/2016,415088,332.38,NET,Cellar Supplies Cheltenham Ltd,01563L
Gloucester City Council,23UE,The Arbor,HC501,Catering Provisions -Food,5110,Drinks,02/03/2016,415089,24.99,NET,Cellar Supplies Cheltenham Ltd,01563L
Gloucester City Council,23UE,The Arbor,HC501,Catering Provisions -Food,5110,Food,02/03/2016,415090,241.38,NET,Bidvest Foodservice (3663),55585U
Gloucester City Council,23UE,The Arbor,HC501,Catering Provisions -Food,5110,Food,02/03/2016,415091,43.91,NET,Bidvest Foodservice (3663),55585U
Gloucester City Council,23UE,The Arbor,HC501,Catering Provisions -Food,5110,Food,02/03/2016,415092,322.99,NET,Bidvest Foodservice (3663),55585U
Gloucester City Council,23UE,The Arbor,HC501,Catering Provisions -Food,5110,Food,02/03/2016,415093,169,NET,Bidvest Foodservice (3663),55585U
Gloucester City Council,23UE,The Arbor,HC501,Catering Provisions -Food,5110,Food,02/03/2016,415095,26.19,NET,Total Produce Gloucester,12645E
Gloucester City Council,23UE,The Arbor,HC501,Catering Provisions -Food,5110,Food,02/03/2016,415096,38.63,NET,Total Produce Gloucester,12645E
Gloucester City Council,23UE,The Arbor,HC501,Catering Provisions -Food,5110,Food,02/03/2016,415097,25.92,NET,Total Produce Gloucester,12645E
Gloucester City Council,23UE,The Arbor,HC501,Catering Provisions -Food,5110,Food,02/03/2016,415098,31.27,NET,Total Produce Gloucester,12645E
Gloucester City Council,23UE,The Arbor,HC501,Catering Provisions -Food,5110,Food,02/03/2016,415099,49.08,NET,Total Produce Gloucester,12645E
Gloucester City Council,23UE,The Arbor,HC501,Catering Provisions -Food,5110,Food,02/03/2016,415100,34.64,NET,Total Produce Gloucester,12645E
Gloucester City Council,23UE,The Arbor,HC501,Catering Provisions -Food,5110,Food,02/03/2016,415102,6.38,NET,Total Produce Gloucester,12645E
Gloucester City Council,23UE,The Arbor,HC501,Catering Provisions -Food,5110,Food,02/03/2016,415103,40.89,NET,Total Produce Gloucester,12645E
Gloucester City Council,23UE,The Arbor,HC501,Catering Provisions -Food,5110,Food,02/03/2016,415104,32.14,NET,Total Produce Gloucester,12645E
Gloucester City Council,23UE,The Arbor,HC501,Catering Provisions -Food,5110,Food,02/03/2016,415105,12.4,NET,Total Produce Gloucester,12645E
Gloucester City Council,23UE,The Arbor,HC501,Catering Provisions -Food,5110,Food,02/03/2016,415106,80.57,NET,Total Produce Gloucester,12645E
Gloucester City Council,23UE,The Arbor,HC501,Catering Provisions -Food,5110,Food,02/03/2016,415107,9.36,NET,Total Produce Gloucester,12645E
Gloucester City Council,23UE,The Arbor,HC501,Catering Provisions -Food,5110,Food,02/03/2016,415108,37.23,NET,Total Produce Gloucester,12645E
Gloucester City Council,23UE,The Arbor,HC501,Catering Provisions -Food,5110,Food,02/03/2016,415109,20.36,NET,Total Produce Gloucester,12645E
Gloucester City Council,23UE,The Arbor,HC501,Catering Provisions -Food,5110,Food,02/03/2016,415110,133.18,NET,Bidvest Foodservice (3663),55585U
Gloucester City Council,23UE,The Arbor,HC501,Catering Provisions -Food,5110,Food,02/03/2016,415111,243.76,NET,Bidvest Foodservice (3663),55585U
Gloucester City Council,23UE,The Arbor,HC501,Catering Provisions -Food,5110,Food,02/03/2016,415112,252.4,NET,Bidvest Foodservice (3663),55585U
Gloucester City Council,23UE,The Arbor,HC501,Catering Provisions -Food,5110,Food,02/03/2016,415113,23.92,NET,Total Produce Gloucester,12645E
Gloucester City Council,23UE,The Arbor,HC501,Catering Provisions -Food,5110,Food,02/03/2016,415114,55.42,NET,Total Produce Gloucester,12645E
Gloucester City Council,23UE,The Arbor,HC501,Catering Provisions -Food,5110,Food,02/03/2016,415116,17.33,NET,Total Produce Gloucester,12645E
Gloucester City Council,23UE,The Arbor,HC501,Catering Provisions -Food,5110,Food,02/03/2016,415117,14.68,NET,Total Produce Gloucester,12645E
Gloucester City Council,23UE,The Arbor,HC501,Catering Provisions -Food,5110,Food,02/03/2016,415118,40.96,NET,Total Produce Gloucester,12645E
Gloucester City Council,23UE,The Arbor,HC501,Catering Provisions -Food,5110,Food,02/03/2016,415119,19.52,NET,Total Produce Gloucester,12645E
Gloucester City Council,23UE,The Arbor,HC501,Catering Provisions -Food,5110,Food,02/03/2016,415120,49.59,NET,Total Produce Gloucester,12645E
Gloucester City Council,23UE,The Arbor,HC501,Catering Provisions -Food,5110,Food,02/03/2016,415121,36.53,NET,Total Produce Gloucester,12645E
Gloucester City Council,23UE,The Arbor,HC501,Catering Provisions -Food,5110,Food,02/03/2016,415122,2.87,NET,Total Produce Gloucester,12645E
Gloucester City Council,23UE,The Arbor,HC501,Catering Provisions -Food,5110,Food,02/03/2016,415150,474.29,NET,Bidvest Foodservice (3663),55585U
Gloucester City Council,23UE,The Arbor,HC501,Catering Provisions -Food,5110,Food,02/03/2016,415151,242.39,NET,Bidvest Foodservice (3663),55585U
Gloucester City Council,23UE,The Arbor,HC501,Catering Provisions -Food,5110,Food,02/03/2016,415153,2.49,NET,Total Produce Gloucester,12645E
Gloucester City Council,23UE,The Arbor,HC501,Catering Provisions -Food,5110,Food,02/03/2016,415154,19.46,NET,Cellar Supplies Cheltenham Ltd,01563L
Gloucester City Council,23UE,The Arbor,HC501,Other Minor Supplies Services,5590,Flowers,02/03/2016,415084,25,NET,Carols Florist,01274X
Gloucester City Council,23UE,The Arbor,HC501,Other Minor Supplies Services,5590,Flowers,02/03/2016,415085,25,NET,Carols Florist,01274X
Gloucester City Council,23UE,The Arbor,HC501,Other Minor Supplies Services,5590,Flowers,02/03/2016,415086,25,NET,Carols Florist,01274X
Gloucester City Council,23UE,The Arbor,HC501,Other Minor Supplies Services,5590,Flowers,02/03/2016,415087,25,NET,Carols Florist,01274X
Gloucester City Council,23UE,Business Transformation & Tech,RT700,Computer Consumables,5422,PLX ENCOREPRO HW720,03/03/2016,415190,603.11,NET,Rocom,56066R
Gloucester City Council,23UE,Cemeteries,HC300,Fuel,4012,Various Items,03/03/2016,414997,385.8,NET,Garden Machinery Gloucester,55641K
Gloucester City Council,23UE,Cemeteries,HC300,Fuel,4012,Various Items,03/03/2016,414998,750.45,NET,Garden Machinery Gloucester,55641K
Gloucester City Council,23UE,Cemeteries,HC300,Major R And M - Vehicles,4010,Wacker Plate,03/03/2016,414999,45,NET,Garden Machinery Gloucester,55641K
Gloucester City Council,23UE,Cemeteries,HC300,Repair/Maint Of Monuments,3004,RC 28/35,03/03/2016,414974,420,NET,Easy Mix Ltd,01403L
Gloucester City Council,23UE,Civica Admin Charges,RT105,Postages,5400,Post 01/02 - 12/02 2016,03/03/2016,415069,1254.57,NET,Royal Mail S.Wales & South West,35830S
Gloucester City Council,23UE,Client Revs & Bens Contract,RT240,Bailiffs Fees,5368,VAT due on statutory fees,03/03/2016,414975,70.84,NET,Bristow & Sutor,05450M
Gloucester City Council,23UE,Client Revs & Bens Contract,RT240,Bailiffs Fees,5368,VAT due on statutory fees,03/03/2016,414988,0,NET,Bristow & Sutor,05450M
Gloucester City Council,23UE,Client Revs & Bens Contract,RT240,Bailiffs Fees,5368,VAT on fees collected,03/03/2016,414969,0,NET,Phoenix Commercial Collections Ltd,13435J
Gloucester City Council,23UE,Client Revs & Bens Contract,RT240,Bailiffs Fees,5368,VAT on fees collected,03/03/2016,414970,0,NET,Phoenix Commercial Collections Ltd,13435J
Gloucester City Council,23UE,Contact Centre,RB300,Postages,5400,Post 05/02 - 18/02 2016,03/03/2016,415074,1364.47,NET,Royal Mail S.Wales & South West,35830S
Gloucester City Council,23UE,Contact Centre,RB300,Publications,5060,Papers,03/03/2016,415050,152.5,NET,Ymk Supermarket,55281U
Gloucester City Council,23UE,Contact Centre,RB300,Stationery,5302,Paper,03/03/2016,415039,451,NET,Premier Paper Group Ltd,09166Y
Gloucester City Council,23UE,Contact Centre,RB300,Stationery,5302,Stationary,03/03/2016,415040,220.44,NET,Lyreco Uk Ltd,11746G
Gloucester City Council,23UE,Council Streetcare Team,HI101,Signs / Nameplates,3039,Birdwood Close & Garlandstone Walk,03/03/2016,415143,88.56,NET,Enterprise (Aol) Ltd,06695G
Gloucester City Council,23UE,Countryside Unit,LP201,Contract Cleaning,3620,Cleaning Rangers Office,03/03/2016,415083,130,NET,Cv Fisher Cleaning Services,14907C
Gloucester City Council,23UE,Crematorium,HC200,Fees For Services Received,5350,Crem Fees February 2016,03/03/2016,415193,406.88,NET,Dr R W Bell,01571P
Gloucester City Council,23UE,Crematorium,HC200,Fees For Services Received,5350,Crem Fees February 2016,03/03/2016,415194,1344.96,NET,Dr C M Stretton,00306P
Gloucester City Council,23UE,Crematorium,HC200,Fees For Services Received,5350,Crem Fees February 2016,03/03/2016,415195,1051.52,NET,Dr D Martin,00890P
Gloucester City Council,23UE,Crematorium,HC200,Repair/Maint Of Fixed Plant,3006,Various Items,03/03/2016,414980,338.91,NET,Facultatieve Technologies Ltd,51210H
Gloucester City Council,23UE,Crematorium,HC200,Vocational Training,2970,Membership Subscription,03/03/2016,415037,205,NET,National Association Of Memorial Masons,59564N
Gloucester City Council,23UE,Docks Complex - Castlemeads Cp,RB210,Maint Of Grounds - General,3030,Hire of Landrover & Trailer,03/03/2016,415148,195,NET,Ken Pink Plant Hire Ltd,56884V
Gloucester City Council,23UE,Docks Complex - Catering Servs,RB110,Catering Provisions -Food,5110,BUFFET MENU N2,03/03/2016,415184,99,NET,Janes Pantry,24500W
Gloucester City Council,23UE,Environmental Planning,LM340,Fees For Services Received,5350,TREES FOR MANOR FARM,03/03/2016,415187,370,NET,Lodge Farm Trees,04241U
Gloucester City Council,23UE,Environmental Planning,LM340,Operational Materials,5070,BRAMLEY FOR INNSWORTH ALLOTMENTS,03/03/2016,415188,18,NET,Lodge Farm Trees,04241U
Gloucester City Council,23UE,Environmental Planning,LM340,Operational Materials,5070,COPPICING AT NETHERIDGE RESERVE,03/03/2016,415182,250,NET,The Little Tree Company,15543K
Gloucester City Council,23UE,Flex Replacement,LY160,It Software,57,SRO4 LICENCE,03/03/2016,415183,52000,CAP,Toptix (Uk) Ltd,16411V
Gloucester City Council,23UE,Flooding And Drainage,HE306,Overtime -Building Maint Staff,1303,Clearance Works,03/03/2016,415035,945,NET,Rdb Safety Boat Ltd,13507J
Gloucester City Council,23UE,Folk Museum,LM210,Other Minor Supplies Services,5590,LED Lighting re-design,03/03/2016,415147,2100,NET,Total Lighting Controls Ltd,02415U
Gloucester City Council,23UE,Gloucester Guildhall,LA100,Maintenance Of Equipment,5030,HPL575 LAMPS,03/03/2016,415169,139,NET,Uss Unique Sound Systems Ltd,59571S
Gloucester City Council,23UE,Gloucester Partnership,FP106,Other Minor Supplies Services,5590,Payment,03/03/2016,415059,3008.12,NET,Gl Communities,09535X
Gloucester City Council,23UE,Gloucester Partnership,FP106,Other Minor Supplies Services,5590,Payment for Choir,03/03/2016,415056,500,NET,Gl Communities,09535X
Gloucester City Council,23UE,Grants To Voluntary Sector,FG100,Members Allocation Fund,7100F,Members Fund grant,03/03/2016,415057,1000,NET,St James The Apostle Quedgeley And Kingsway,15479T
Gloucester City Council,23UE,Grants To Voluntary Sector,FG100,Members Allocation Fund,7100F,Members Fund grant,03/03/2016,415058,28.45,NET,St James The Apostle Quedgeley And Kingsway,15479T
Gloucester City Council,23UE,Grants To Voluntary Sector,FG100,Members Allocation Fund,7100F,Payment,03/03/2016,415060,177.5,NET,Gl Communities,09535X
Gloucester City Council,23UE,Green Garden Waste,HI105,Basic Pay - Temporary Staff,2751,temporary staff w/e 19/02/2016,03/03/2016,415070,403,NET,One To One Recruitment,04752H
Gloucester City Council,23UE,Group Mgr Cult Ser & Tourism,GR102,Consultants Fees,5349,Culture Strategy Final 50%,03/03/2016,414996,12475,NET,Festivals And Events International Ltd,15992Z
Gloucester City Council,23UE,Guildhall Bar And Caf�,LA210,Catering Provisions -Food,5110,FOOD,03/03/2016,415186,41.3,NET,Janes Pantry,24500W
Gloucester City Council,23UE,Guildhall Bar And Caf�,LA210,Catering Provisions -Food,5110,Milk,03/03/2016,415128,4.76,NET,Total Produce Gloucester,12645E
Gloucester City Council,23UE,Guildhall Bar And Caf�,LA210,Catering Provisions -Food,5110,Milk,03/03/2016,415129,4.4,NET,Total Produce Gloucester,12645E
Gloucester City Council,23UE,Guildhall Bar And Caf�,LA210,Catering Provisions -Food,5110,Milk,03/03/2016,415130,4.76,NET,Total Produce Gloucester,12645E
Gloucester City Council,23UE,Guildhall Bar And Caf�,LA210,Catering Provisions -Food,5110,Milk,03/03/2016,415131,4.76,NET,Total Produce Gloucester,12645E
Gloucester City Council,23UE,Guildhall Bar And Caf�,LA210,Catering Provisions -Food,5110,Milk,03/03/2016,415132,4.76,NET,Total Produce Gloucester,12645E
Gloucester City Council,23UE,Guildhall Bar And Caf�,LA210,Catering Provisions -Food,5110,Milk,03/03/2016,415133,4.76,NET,Total Produce Gloucester,12645E
Gloucester City Council,23UE,Guildhall Bar And Caf�,LA210,Catering Provisions -Food,5110,Milk,03/03/2016,415134,4.76,NET,Total Produce Gloucester,12645E
Gloucester City Council,23UE,Guildhall Bar And Caf�,LA210,Catering Provisions -Food,5110,Milk,03/03/2016,415135,4.76,NET,Total Produce Gloucester,12645E
Gloucester City Council,23UE,Guildhall Bar And Caf�,LA210,Catering Provisions -Food,5110,Milk,03/03/2016,415136,4.76,NET,Total Produce Gloucester,12645E
Gloucester City Council,23UE,Guildhall Bar And Caf�,LA210,Catering Provisions -Food,5110,Milk,03/03/2016,415137,4.76,NET,Total Produce Gloucester,12645E
Gloucester City Council,23UE,Guildhall Bar And Caf�,LA210,Catering Provisions -Liquor,5111,Beer line Cleaner,03/03/2016,414992,13.98,NET,Cellar Supplies Cheltenham Ltd,01563L
Gloucester City Council,23UE,Guildhall Bar And Caf�,LA210,Catering Provisions -Liquor,5111,Drinks,03/03/2016,414991,1485.87,NET,Cellar Supplies Cheltenham Ltd,01563L
Gloucester City Council,23UE,Guildhall Bar And Caf�,LA210,Hire Of Equipment,5020,Stock Audit 28/01/2016,03/03/2016,414993,90,NET,Fea Audits,08888J
Gloucester City Council,23UE,REDACTED,REDACTED,REDACTED,REDACTED,REDACTED,03/03/2016,REDACTED,1250,NET,REDACTED,REDACTED
Gloucester City Council,23UE,REDACTED,REDACTED,REDACTED,REDACTED,REDACTED,03/03/2016,REDACTED,0,NET,REDACTED,REDACTED
Gloucester City Council,23UE,Guildhall Events,LA200,Fees For Services Received,5350,National Ads 19/02/16,03/03/2016,415004,200,NET,Dhp Group,10813C
Gloucester City Council,23UE,Guildhall Events,LA200,Fees For Services Received,5350,National Ads 28/10/14,03/03/2016,415003,100,NET,Dhp Group,10813C
Gloucester City Council,23UE,Guildhall Events,LA200,Fees For Services Received,5350,Room Bookings,03/03/2016,415002,1924.99,NET,Edward Hotel,00141D
Gloucester City Council,23UE,Homelessness,CH120,Fees For Services Received,5350,Medical Report,03/03/2016,414967,20.5,NET,Gloucester Health Access Centre,11611H
Gloucester City Council,23UE,REDACTED,REDACTED,REDACTED,REDACTED,REDACTED,03/03/2016,REDACTED,489.44,NET,REDACTED,REDACTED
Gloucester City Council,23UE,REDACTED,REDACTED,REDACTED,REDACTED,REDACTED,03/03/2016,REDACTED,489.44,NET,REDACTED,REDACTED
Gloucester City Council,23UE,REDACTED,REDACTED,REDACTED,REDACTED,REDACTED,03/03/2016,REDACTED,550,NET,REDACTED,REDACTED
Gloucester City Council,23UE,REDACTED,REDACTED,REDACTED,REDACTED,REDACTED,03/03/2016,REDACTED,530,NET,REDACTED,REDACTED
Gloucester City Council,23UE,Investment Property,RB500,General Repair/Maint Buildings,3000,JANUARY 2016 MTC WORKS,03/03/2016,415168,14499.52,NET,Rf Gardiner Limited,12299B
Gloucester City Council,23UE,Kings Quarter,RY146,Contract Payments,20,Remove Barriers & Bollards,03/03/2016,414981,490,CAP,Mpl Wrought Iron Llp,03907P
Gloucester City Council,23UE,Kings Quarter,RY146,Contract Payments,20,Valuation Report,03/03/2016,415045,750,CAP,Bruton Knowles,57534T
Gloucester City Council,23UE,Kings Quarter,RY146,Contract Payments,20,Various Items,03/03/2016,414990,416,CAP,Ken Pink Plant Hire Ltd,56884V
Gloucester City Council,23UE,Nms Contract,HI102,Additional Non-Tender Items,6973,Membership 16/17,03/03/2016,415048,395,NET,Larac,56584L
Gloucester City Council,23UE,Nms Contract,HI102,Fees For Services Received,5350,JANUARY 2016 SUPPORT COSTS,03/03/2016,415189,3441.2,NET,Somerset County Council,15963G
Gloucester City Council,23UE,Rehousing,CH111,Fees For Services Received,5350,Medical Report,03/03/2016,414964,20.5,NET,Bartongate Surgery,05680S
Gloucester City Council,23UE,Rehousing,CH111,Fees For Services Received,5350,Medical Report,03/03/2016,414965,20.5,NET,Saintbridge Surgery,58374F
Gloucester City Council,23UE,Rehousing,CH111,Fees For Services Received,5350,Medical Report,03/03/2016,414966,20.5,NET,Rosebank Health,03041E
Gloucester City Council,23UE,Rehousing,CH111,Fees For Services Received,5350,Medical Report,03/03/2016,414968,20.5,NET,Bartongate Surgery,05680S
Gloucester City Council,23UE,Retail Market - Landlord,HM300,Printing,5300,KEY CABINET,03/03/2016,415181,19.16,NET,Screwfix Direct,54672H
Gloucester City Council,23UE,Superbreak,LT104,Materials For Sale,5080,Booking 05/06/2016,03/03/2016,415043,68,NET,Superbreak Mini Holidays,00712D
Gloucester City Council,23UE,Superbreak,LT104,Materials For Sale,5080,Booking 22/04/16,03/03/2016,415042,65,NET,Superbreak Mini Holidays,00712D
Gloucester City Council,23UE,Superbreak,LT104,Sale Of Goods And Services,9230,Booking 05/06/2016,03/03/2016,415043,-5.66,NET,Superbreak Mini Holidays,00712D
Gloucester City Council,23UE,Superbreak,LT104,Sale Of Goods And Services,9230,Booking 22/04/16,03/03/2016,415042,-5.41,NET,Superbreak Mini Holidays,00712D
Gloucester City Council,23UE,Tourism Marketing,LT100,Exhibits And Collections,5038,Room Bookings,03/03/2016,415038,202.5,NET,Hilton Blackpool,16399G
Gloucester City Council,23UE,Tourism Marketing,LT100,Window Cleaning,3610,Window Cleaning,03/03/2016,415054,42,NET,Interserve Fs (Uk) Limited,00442K
Gloucester City Council,23UE,Training Schemes,ET100,Vocational Training,2970,NVQ assessments,03/03/2016,414987,400,NET,The Gold Standard,56141C
Gloucester City Council,23UE,Vehicles,RS140,Fuel,4012,Fuel,03/03/2016,415067,151.13,NET,Allstar Business Solutions Ltd (Arval),06594A
Gloucester City Council,23UE,Vehicles,RS140,Routine R And M - Vehicles,4011,MOT Test,03/03/2016,415052,45,NET,123 Car & Commercial,07651E
Gloucester City Council,23UE,Vehicles,RS140,Routine R And M - Vehicles,4011,Various Items,03/03/2016,415051,376.75,NET,123 Car & Commercial,07651E
Gloucester City Council,23UE,Allotments,HI104,Fees For Services Received,5350,SAINTBRIDGE ALLOTMENTS SKIP,04/03/2016,415419,230,NET,Allstone Sand & Gravel Aggregates Ltd,00940M
Gloucester City Council,23UE,Cemeteries,HC300,Maint Of Grounds - General,3030,100m turf,04/03/2016,415432,250,NET,Aran Turf,56656L
Gloucester City Council,23UE,City Museum And Art Gallery,LM200,Hire Of Equipment,5020,FEB16 MACHINE RENTAL,04/03/2016,415472,135,NET,La Spaziale Uk Ltd,11823P
Gloucester City Council,23UE,Contact Centre,RB300,Stationery,5302,"HAND SANITISER, ADHESIVE TAPE",04/03/2016,415428,20.16,NET,Lyreco Uk Ltd,11746G
Gloucester City Council,23UE,Countryside Unit,LP201,General Repair/Maint Buildings,3000,CUTTING DISCS,04/03/2016,415435,6.66,NET,Screwfix Direct,54672H
Gloucester City Council,23UE,Countryside Unit,LP201,Maint Of Grounds - General,3030,BARN OWL BOXES,04/03/2016,414646,329.2,NET,C J Wildbird Foods Ltd,02226Z
Gloucester City Council,23UE,Countryside Unit,LP201,Maint Of Grounds - General,3030,GOODS,04/03/2016,415434,382.46,NET,Screwfix Direct,54672H
Gloucester City Council,23UE,Docks Complex - Services,RB100,Service Charges,3020,JAN-MAR2015 SERVICE CHARGE,04/03/2016,415485,13028.75,NET,Gloucester Quays Management Ltd,13497K
Gloucester City Council,23UE,Economic Development,FP300,Business Grant,7116,GRANT 2016,04/03/2016,415456,500,NET,REDACTED,REDACTED
Gloucester City Council,23UE,Economic Development,FP300,Other Minor Supplies Services,5590,fdps advert Dec15,04/03/2016,415450,988,NET,Commercial Property Monthly,13485T
Gloucester City Council,23UE,Events,LT410,Events,5952,ROUND TABLE FIREWORKS 2015,04/03/2016,415515,684,NET,A-Star Traffic Management,16212D
Gloucester City Council,23UE,REDACTED,REDACTED,REDACTED,REDACTED,REDACTED,04/03/2016,REDACTED,580,NET,REDACTED,REDACTED
Gloucester City Council,23UE,REDACTED,REDACTED,REDACTED,REDACTED,REDACTED,04/03/2016,REDACTED,1000,NET,REDACTED,REDACTED
Gloucester City Council,23UE,Guildhall Bar And Caf�,LA210,Catering Provisions -Food,5110,food,04/03/2016,415457,114.7,NET,Woodward Foodservice,10714F
Gloucester City Council,23UE,Guildhall Bar And Caf�,LA210,Catering Provisions -Food,5110,fruit & veg JAN16,04/03/2016,415433,212.38,NET,Woody'S Fruit & Veg,11798L
Gloucester City Council,23UE,Guildhall Bar And Caf�,LA210,Catering Provisions -Food,5110,ICECREAM FOR RESALE,04/03/2016,415464,72,NET,Winstones Ice Cream Ltd,56347D
Gloucester City Council,23UE,Guildhall Bar And Caf�,LA210,Catering Provisions -Food,5110,milk,04/03/2016,415500,4.76,NET,Total Produce Gloucester,12645E
Gloucester City Council,23UE,Guildhall Bar And Caf�,LA210,Catering Provisions -Food,5110,milk,04/03/2016,415501,4.76,NET,Total Produce Gloucester,12645E
Gloucester City Council,23UE,Guildhall Bar And Caf�,LA210,Catering Provisions -Food,5110,milk,04/03/2016,415502,4.76,NET,Total Produce Gloucester,12645E
Gloucester City Council,23UE,Guildhall Bar And Caf�,LA210,Catering Provisions -Food,5110,milk,04/03/2016,415503,4.76,NET,Total Produce Gloucester,12645E
Gloucester City Council,23UE,Guildhall Bar And Caf�,LA210,Catering Provisions -Food,5110,milk,04/03/2016,415504,4.76,NET,Total Produce Gloucester,12645E
Gloucester City Council,23UE,Guildhall Bar And Caf�,LA210,Catering Provisions -Liquor,5111,GLOUCESTER GOLD FOR RESALE,04/03/2016,415467,152,NET,Gloucester Brewery,13373F
Gloucester City Council,23UE,Guildhall Bar And Caf�,LA210,Catering Provisions -Liquor,5111,Priory Pale,04/03/2016,414994,57,NET,Gloucester Brewery,13373F
Gloucester City Council,23UE,REDACTED,REDACTED,REDACTED,REDACTED,REDACTED,04/03/2016,REDACTED,100,NET,REDACTED,REDACTED
Gloucester City Council,23UE,REDACTED,REDACTED,REDACTED,REDACTED,REDACTED,04/03/2016,REDACTED,607.03,NET,REDACTED,REDACTED
Gloucester City Council,23UE,REDACTED,REDACTED,REDACTED,REDACTED,REDACTED,04/03/2016,REDACTED,450,NET,REDACTED,REDACTED
Gloucester City Council,23UE,REDACTED,REDACTED,REDACTED,REDACTED,REDACTED,04/03/2016,REDACTED,495.2,NET,REDACTED,REDACTED
Gloucester City Council,23UE,Guildhall Events,LA200,Fees For Services Received,5350,JAN16 news,04/03/2016,415463,16.75,NET,W H Smith Ltd,40860M
Gloucester City Council,23UE,Guildhall Events,LA200,Fees For Services Received,5350,TAXIS FOR VOLUNTEERS 24/10/15,04/03/2016,415465,28.5,NET,The Pelican Inn,16184G
Gloucester City Council,23UE,REDACTED,REDACTED,REDACTED,REDACTED,REDACTED,04/03/2016,REDACTED,270,NET,REDACTED,REDACTED
Gloucester City Council,23UE,REDACTED,REDACTED,REDACTED,REDACTED,REDACTED,04/03/2016,REDACTED,240,NET,REDACTED,REDACTED
Gloucester City Council,23UE,Guildhall Events,LA200,Maintenance Of Equipment,5030,LE400 REPLACEMENT DRIVER & RECONE KIT,04/03/2016,415478,431,NET,Uss Unique Sound Systems Ltd,59571S
Gloucester City Council,23UE,Guildhall Events,LA200,Maintenance Of Equipment,5030,MARTIN HAZER & SMOKE FLUID,04/03/2016,415479,228,NET,Uss Unique Sound Systems Ltd,59571S
Gloucester City Council,23UE,Homelessness,CH120,Board And Lodging,5515,various tenants,04/03/2016,415517,1607.24,NET,Dorchester Guest House,12298D
Gloucester City Council,23UE,Homelessness,CH120,Board And Lodging,5515,various tenants,04/03/2016,415519,1080.28,NET,Carbrey Housing Ltd,11098G
Gloucester City Council,23UE,Homelessness,CH120,Board And Lodging,5515,various tenants,04/03/2016,415520,794.56,NET,Kalmwood Ltd,08568G
Gloucester City Council,23UE,Homelessness,CH120,Board And Lodging,5515,various tenants,04/03/2016,415522,1722.73,NET,James Legge Property (Ltd),07844R
Gloucester City Council,23UE,Homelessness,CH120,Board And Lodging,5515,various tenants,04/03/2016,415523,6646,NET,REDACTED,REDACTED
Gloucester City Council,23UE,REDACTED,REDACTED,REDACTED,REDACTED,REDACTED,04/03/2016,REDACTED,4377.54,NET,REDACTED,REDACTED
Gloucester City Council,23UE,REDACTED,REDACTED,REDACTED,REDACTED,REDACTED,04/03/2016,REDACTED,1819.37,NET,REDACTED,REDACTED
Gloucester City Council,23UE,Homelessness,CH120,Fees For Services Received,5350,medical report,04/03/2016,415455,20.5,NET,Gloucester City Health Centre,02093U
Gloucester City Council,23UE,Homelessness,CH120,Removal And Storage Fees,5513,storage fees,04/03/2016,415452,115.71,NET,Advanced Removals & Storage Ltd,57142R
Gloucester City Council,23UE,Homelessness,CH120,Removal And Storage Fees,5513,storage fees,04/03/2016,415483,157.5,NET,Advanced Removals & Storage Ltd,57142R
Gloucester City Council,23UE,Homelessness,CH120,Removal And Storage Fees,5513,storage fees,04/03/2016,415484,168.75,NET,Advanced Removals & Storage Ltd,57142R
Gloucester City Council,23UE,REDACTED,REDACTED,REDACTED,REDACTED,REDACTED,04/03/2016,REDACTED,321,NET,REDACTED,REDACTED
Gloucester City Council,23UE,REDACTED,REDACTED,REDACTED,REDACTED,REDACTED,04/03/2016,REDACTED,530,NET,REDACTED,REDACTED
Gloucester City Council,23UE,Managing Director,RE100,Fees For Services Received,5350,corporate director recruitment,04/03/2016,415441,3050,NET,Richardson Associates (Uk) Ltd,16408H
Gloucester City Council,23UE,Marchants,LT108,Materials For Sale,5080,Tickets January 2016,04/03/2016,415044,409,NET,Marchants Coaches Ltd,48151Y
Gloucester City Council,23UE,Pollution Control,HE300,Maint Of Grounds - General,3030,Ditch Clearance- Abbeydale,04/03/2016,414977,180,NET,Rdb Safety Boat Ltd,13507J
Gloucester City Council,23UE,Rehousing,CH111,Fees For Services Received,5350,medical report,04/03/2016,415453,20.5,NET,Rosebank Health,03041E
Gloucester City Council,23UE,Rehousing,CH111,Fees For Services Received,5350,medical report,04/03/2016,415454,20.5,NET,Hadwen Medical Practice,59727U
Gloucester City Council,23UE,Retail Market - Landlord,HM300,Trade Refuse Collection,3630,FEB16 FOOD WASTE,04/03/2016,415469,120,NET,B & S Pointon Ltd,06253G
Gloucester City Council,23UE,Robinswoodhill Trading Account,LP203,Maint Of Grounds - General,3030,BARN OWL BOXES,04/03/2016,414646,95,NET,C J Wildbird Foods Ltd,02226Z
Gloucester City Council,23UE,Tic Rovercard Sales,LT101,Materials For Sale,5080,Tickets January 2016,04/03/2016,415055,2253,NET,Stagecoach Services Ltd,56554W
Gloucester City Council,23UE,Tic Rovercard Sales,LT101,Sale Of Goods And Services,9230,Tickets January 2016,04/03/2016,415055,-187.75,NET,Stagecoach Services Ltd,56554W
Gloucester City Council,23UE,Tree Planting Grant Funded,LY150,Contract Payments,20,TREES,04/03/2016,415468,249.97,CAP,Mount Pleasant Trees,51352K
Gloucester City Council,23UE,Tree Planting Grant Funded,LY150,Contract Payments,20,TREES,04/03/2016,415482,58.56,CAP,Mount Pleasant Trees,51352K
Gloucester City Council,23UE,Business Transformation & Tech,RT700,Computer Consumables,5422,plx Encorepro,07/03/2016,415481,207.67,NET,Rocom,56066R
Gloucester City Council,23UE,Cemeteries,HC300,Operational Materials,5070,Fleece Jacket,07/03/2016,414979,23.04,NET,Safpro Industrial Supply Co,39190W
Gloucester City Council,23UE,Contact Centre,RB300,Stationery,5302,stationery,07/03/2016,415429,66.06,NET,Lyreco Uk Ltd,11746G
Gloucester City Council,23UE,Corporate Reporting /Financing,RC504,Other Minor Supplies Services,5590,city life survey configuration,07/03/2016,415480,300,NET,Rol Solutions Ltd T/A Govmetric,14158C
Gloucester City Council,23UE,Crematorium,HC200,Memorial Plaques,5053,plaques,07/03/2016,415491,268,NET,Arkell & Hurcombe,59812T
Gloucester City Council,23UE,Crematorium,HC200,Memorial Plaques,5053,plaques,07/03/2016,415492,54,NET,Arkell & Hurcombe,59812T
Gloucester City Council,23UE,Crematorium Vehicles,HY049,Purchase Of Vehicles >5000,40,Various Items,07/03/2016,415071,59473,CAP,Frank Sutton Ltd - Agric'L Engineer,42875D
Gloucester City Council,23UE,Development Management,PT200,Advertising And Publicity,5702,adverts 25/2/16,07/03/2016,415445,409.02,NET,Local World Ltd,08556P
Gloucester City Council,23UE,Development Management,PT200,Fees For Services Received,5350,DCP ONLINE RENEWALS,07/03/2016,415494,1220,NET,Haymarket Media Group Ltd,56642Y
Gloucester City Council,23UE,Economic Development,FP300,Arts Grants,7113,broadband connection,07/03/2016,415444,329,NET,Mason Infotech Limited,16132C
Gloucester City Council,23UE,Economic Development,FP300,Other Minor Supplies Services,5590,investors brochure,07/03/2016,415496,475,NET,Jaz Media,16210H
Gloucester City Council,23UE,Grants To Voluntary Sector,FG100,Members Allocation Fund,7100F,Carisbrooke Road,07/03/2016,415065,224,NET,Greenfields Garden Services Ltd,48130G
Gloucester City Council,23UE,Guildhall Bar And Caf�,LA210,Catering Provisions -Liquor,5111,SUREMIX GAS,07/03/2016,415427,27.74,NET,Boc Ltd,59172L
Gloucester City Council,23UE,REDACTED,REDACTED,REDACTED,REDACTED,REDACTED,07/03/2016,REDACTED,1508.94,NET,REDACTED,REDACTED
Gloucester City Council,23UE,REDACTED,REDACTED,REDACTED,REDACTED,REDACTED,07/03/2016,REDACTED,150,NET,REDACTED,REDACTED
Gloucester City Council,23UE,REDACTED,REDACTED,REDACTED,REDACTED,REDACTED,07/03/2016,REDACTED,140,NET,REDACTED,REDACTED
Gloucester City Council,23UE,Guildhall Events,LA200,Security Services Fees,5351,SIA door staff FEB16,07/03/2016,415178,1237.75,NET,Nsgl Ltd (Security Acct),12539E
Gloucester City Council,23UE,Homelessness Prevention,CH122,Basic Pay - Temporary Staff,2751,temporary staff,07/03/2016,415493,740.46,NET,Greenacre Recruitment Ltd,15817V
Gloucester City Council,23UE,Kings Sq Paving Emerg Works,RY161,Contract Payments,20,Bus Station hoardings,07/03/2016,415412,9978.61,CAP,Rf Gardiner Limited,12299B
Gloucester City Council,23UE,Pollution Control,HE300,Fees For Services Received,5350,Citroen C2 collection and disposal,07/03/2016,414824,180,NET,Harry Buckland,16135W
Gloucester City Council,23UE,Pollution Control,HE300,Fees For Services Received,5350,silver Ford Puma collection & disposal,07/03/2016,414823,190,NET,Harry Buckland,16135W
Gloucester City Council,23UE,Printing,RP103,Printing,5300,"leaflets, newsletters & key ring inserts",07/03/2016,415439,603,NET,Alpha Colour Printers Ltd,00945B
Gloucester City Council,23UE,Robinswoodhill Trading Account,LP203,Maint Of Grounds - General,3030,HILL ROAD GATE AND FENCE,07/03/2016,415448,664,NET,Greenfields Garden Services Ltd,48130G
Gloucester City Council,23UE,Solace Project,FP843,Other Minor Supplies Services,5590,FEB16 ASB salary,07/03/2016,415403,3250,NET,Gloucester City Homes,05244T
Gloucester City Council,23UE,The Arbor,HC501,Catering Provisions -Food,5110,FOOD,07/03/2016,414426,118.2,NET,Janes Pantry,24500W
Gloucester City Council,23UE,The Arbor,HC501,Catering Provisions -Food,5110,FOOD,07/03/2016,414651,64.49,NET,Janes Pantry,24500W
Gloucester City Council,23UE,The Arbor,HC501,Catering Provisions -Food,5110,FOOD,07/03/2016,415185,99.92,NET,Janes Pantry,24500W
Gloucester City Council,23UE,The Arbor,HC501,Cleaning Materials,3600,ARBOR SASNITARY DISPOSAL UNITS,07/03/2016,414477,34.56,NET,Minster Cleaning Services,02158R
Gloucester City Council,23UE,Townscape Heritage Initiative,LY145,Contract Payments,20,CPD taster,07/03/2016,415477,375,CAP,National Heritage Ironwork Group,16410X
Gloucester City Council,23UE,Tree Planting Grant Funded,LY150,Contract Payments,20,30 OXMOOR BIRCH TREE,07/03/2016,415476,224,CAP,Greenfields Garden Services Ltd,48130G
Gloucester City Council,23UE,Tree Planting Grant Funded,LY150,Contract Payments,20,BYRON AVE PINE TREES,07/03/2016,415513,690,CAP,Greenfields Garden Services Ltd,48130G
Gloucester City Council,23UE,Tree Planting Grant Funded,LY150,Contract Payments,20,CURLEW ROAD CHERRY TREES,07/03/2016,415475,402,CAP,Greenfields Garden Services Ltd,48130G
Gloucester City Council,23UE,Tree Planting Grant Funded,LY150,Contract Payments,20,DRAYTON WAY CHERRY TREES,07/03/2016,415512,402,CAP,Greenfields Garden Services Ltd,48130G
Gloucester City Council,23UE,Tree Planting Grant Funded,LY150,Contract Payments,20,GT WESTERN RD PINE TREES,07/03/2016,415511,555,CAP,Greenfields Garden Services Ltd,48130G
Gloucester City Council,23UE,Tree Planting Grant Funded,LY150,Contract Payments,20,Stonechat POS Birch Tree,07/03/2016,415416,224,CAP,Greenfields Garden Services Ltd,48130G
Gloucester City Council,23UE,Tree Planting Grant Funded,LY150,Contract Payments,20,STROUD ROAD BIRCH TREE,07/03/2016,415514,299,CAP,Greenfields Garden Services Ltd,48130G
Gloucester City Council,23UE,Aspire Admin Charges,LC105,Contracted Services,6970,MAR16 management fees,08/03/2016,415605,54792.25,NET,Aspire Sports & Cultural Trust,08135V
Gloucester City Council,23UE,Blackfriars,LA609,Contract Cleaning,3620,FEB16 cleaning,08/03/2016,415471,390,NET,Into Cleaning,14609P
Gloucester City Council,23UE,Cemeteries,HC300,Major R And M - Vehicles,4010,chainsaw chains,08/03/2016,415629,37,NET,Garden Machinery Gloucester,55641K
Gloucester City Council,23UE,Cemeteries,HC300,Major R And M - Vehicles,4010,mini digger service,08/03/2016,415630,139.88,NET,Garden Machinery Gloucester,55641K
Gloucester City Council,23UE,Cemeteries,HC300,Operational Materials,5070,Various Clothing,08/03/2016,415036,157.39,NET,Safpro Industrial Supply Co,39190W
Gloucester City Council,23UE,Cemeteries,HC300,Purch Vehicles/M. Plant <5000,4000,vehicle sertvice Transit VK61HFN,08/03/2016,415619,270.1,NET,123 Car & Commercial,07651E
Gloucester City Council,23UE,Cemeteries,HC300,Routine R And M - Vehicles,4011,mini digger service,08/03/2016,415630,346,NET,Garden Machinery Gloucester,55641K
Gloucester City Council,23UE,Cemeteries,HC300,Tyres,4014,tyres re CN57DYY,08/03/2016,415633,111.02,NET,A T S Euromaster Ltd,01860B
Gloucester City Council,23UE,Cemeteries,HC300,Vocational Training,2970,2016 subscription,08/03/2016,415423,35,NET,Pharos International,00101S
Gloucester City Council,23UE,Civica Admin Charges,RT105,Postages,5400,acct 0870585007 15/2/16 - 26/2/16,08/03/2016,415611,1306.07,NET,Royal Mail S.Wales & South West,35830S
Gloucester City Council,23UE,Client Revs & Bens Contract,RT240,Bailiffs Fees,5368,VAT only invoice,08/03/2016,415606,0,NET,Bristow & Sutor,05450M
Gloucester City Council,23UE,Client Revs & Bens Contract,RT240,Bailiffs Fees,5368,VAT only invoice,08/03/2016,415607,0,NET,Bristow & Sutor,05450M
Gloucester City Council,23UE,Contact Centre,RB300,Other Minor Supplies Services,5590,FEB16 outbound call usage,08/03/2016,415610,0.82,NET,Direct Response (Formerly Office Response),09439K
Gloucester City Council,23UE,Contact Centre,RB300,Uniforms,5201,Easycare Straight Skirt,08/03/2016,415000,20.1,NET,Meltemi Company Clothing Limited,54572N
Gloucester City Council,23UE,Contact Centre,RB300,Uniforms,5201,trousers,08/03/2016,415497,41.9,NET,Meltemi Company Clothing Limited,54572N
Gloucester City Council,23UE,Corporate Reporting /Financing,RC504,Fees For Services Received,5350,MARCH 2016 CHILDCARE VOUCHERS,08/03/2016,415612,42.91,NET,Wider Plan Ltd ( Formerly Kiddivouchers),07893B
Gloucester City Council,23UE,Council Streetcare Team,HI101,Maint Of Grounds - General,3030,disposable gloves,08/03/2016,415424,22.6,NET,Safpro Industrial Supply Co,39190W
Gloucester City Council,23UE,Council Streetcare Team,HI101,Maint Of Grounds - General,3030,dog mess stencil,08/03/2016,415426,83.88,NET,Severn Signs Ltd,49841D
Gloucester City Council,23UE,Council Streetcare Team,HI101,Maint Of Grounds - General,3030,inspection 5/2/16,08/03/2016,415626,86.81,NET,Wood Veterinary Group,48892V
Gloucester City Council,23UE,Council Streetcare Team,HI101,Maint Of Grounds - General,3030,Plock Court Signs,08/03/2016,415628,256,NET,Severn Signs Ltd,49841D
Gloucester City Council,23UE,Council Streetcare Team,HI101,Maint Of Grounds - General,3030,saintbridge pons,08/03/2016,415425,48,NET,Severn Signs Ltd,49841D
Gloucester City Council,23UE,Countryside Unit,LP201,Membership Fees,9483,Full member 2016/17,08/03/2016,415635,45,NET,Gloucester Cattle Society,56263L
Gloucester City Council,23UE,Crematorium,HC200,Advertising And Publicity,5702,adverts 24/2/16,08/03/2016,415443,58.43,NET,Local World Ltd,08556P
Gloucester City Council,23UE,Development Management,PT200,Basic Pay - Temporary Staff,2751,temp staff w/e 28/2/16,08/03/2016,415618,1200,NET,The Oyster Partnership Limited,14900T
Gloucester City Council,23UE,Dog Warden,HE400,Fees For Services Received,5350,DEC15 stray dog warden service,08/03/2016,415436,3913.11,NET,Bromsgrove District Council,15037G
Gloucester City Council,23UE,Economic Development,FP300,Business Grant,7116,business rent grant,08/03/2016,415637,1500,NET,Slotplay,16409F
Gloucester City Council,23UE,General Works Fund,RY203,Consultants Fees,30,CAD support JAN-FEB16,08/03/2016,415462,902.5,CAP,Graham Parker Environmental Design Solutions,16390B
Gloucester City Council,23UE,Gloscat S106,LY073,Contract Payments,20,3 days carving in Gloucester Park,08/03/2016,415643,960,CAP,Wild Wood Carving,13438C
Gloucester City Council,23UE,Guildhall Cinema,LA202,Hire Of Equipment,5020,Film transport MAR16,08/03/2016,415617,219.59,NET,Nft Logistics Ltd,13505N
Gloucester City Council,23UE,Homelessness Prevention,CH122,Basic Pay - Temporary Staff,2751,temp staff w/e 28/2/16,08/03/2016,415624,796.58,NET,Greenacre Recruitment Ltd,15817V
Gloucester City Council,23UE,Investment Property,RB500,Consultants Fees,5349,Bentinck Hse OCT-DEC15,08/03/2016,414421,1562.5,NET,Alder King,02367D
Gloucester City Council,23UE,Investment Property,RB500,Consultants Fees,5349,GROSVENOR HSE OCT-DEC15 FEES,08/03/2016,414420,2375,NET,Alder King,02367D
Gloucester City Council,23UE,Investment Property,RB500,Consultants Fees,5349,Kings House OCT-DEC15,08/03/2016,414422,1687.5,NET,Alder King,02367D
Gloucester City Council,23UE,Investment Property,RB500,Consultants Fees,5349,Kings Hse OCT-DEC15,08/03/2016,414423,340.11,NET,Alder King,02367D
Gloucester City Council,23UE,National Express,LT105,Materials For Sale,5080,tickets sold on commission FEB16,08/03/2016,415609,9729.45,NET,National Express Ltd,31455K
Gloucester City Council,23UE,National Express,LT105,Sale Of Goods And Services,9230,tickets sold on commission FEB16,08/03/2016,415609,-927.53,NET,National Express Ltd,31455K
Gloucester City Council,23UE,Off Street Car Parks,PP110,Rents,3200,Rent Mar - Jun 2016,08/03/2016,415062,600,NET,Boots The Chemist,04540V
Gloucester City Council,23UE,Organisational Health,RC160,Fees For Services Received,5350,OH medical report,08/03/2016,414810,33,NET,Gloucestershire County Council,18650D
Gloucester City Council,23UE,Parks Contract Management,LP100,Maint Of Grounds - General,3030,KINGSWAY BMX TRACK,08/03/2016,408334,227,NET,Greenfields Garden Services Ltd,48130G
Gloucester City Council,23UE,Printing,RP103,Printing,5300,FEB16 printing,08/03/2016,415461,1154.09,NET,Alpha Colour Printers Ltd,00945B
Gloucester City Council,23UE,Registration Of Electors,RS400,Printing,5300,FEB16 IER mailings,08/03/2016,415420,479.35,NET,Alpha Response Print & Mail Ltd,03029U
Gloucester City Council,23UE,Robinswoodhill Trading Account,LP203,General Repair/Maint Buildings,3000,water trough & ball valve,08/03/2016,415627,414.44,NET,Tcs Country Supplies,15532R
Gloucester City Council,23UE,The Arbor,HC501,Catering Provisions -Food,5110,RE CREDIT NOTE TAKEN TWICE IN ERROR,08/03/2016,415645,17.66,NET,Bidvest Foodservice (3663),55585U
Gloucester City Council,23UE,Training Schemes,ET100,Vocational Training,2970,NVQ ASSESSMENTS,08/03/2016,415644,940,NET,The Gold Standard,56141C
Gloucester City Council,23UE,Vehicles,RS140,Tyres,4014,tyres for VE08OUG,08/03/2016,415632,123.4,NET,Ats Euromaster Ltd,06005E
Gloucester City Council,23UE,Aspire Admin Charges,LC105,Fees For Services Received,5350,STAFF MEMBERSHIPS,09/03/2016,414424,609,NET,Aspire Sports & Cultural Trust,08135V
Gloucester City Council,23UE,Business Transformation & Tech,RT700,Computer Consumables,5422,OCE TDS400 lease MAR-MAY16,09/03/2016,415642,210,NET,Stanford Marsh Ltd,51139M
Gloucester City Council,23UE,Business Transformation & Tech,RT700,Computer Consumables,5422,scanner lease MAR-MAY16,09/03/2016,415641,315,NET,Stanford Marsh Ltd,51139M
Gloucester City Council,23UE,Cemeteries,HC300,Basic Pay - Temporary Staff,2751,temporary staff w/e 21/02/2016,09/03/2016,414983,439.88,NET,Premiere Employment Group Ltd,55468Z
Gloucester City Council,23UE,Cemeteries,HC300,Basic Pay - Temporary Staff,2751,temporary staff w/e 21/02/2016,09/03/2016,414984,439.88,NET,Premiere Employment Group Ltd,55468Z
Gloucester City Council,23UE,Cemeteries,HC300,Maint Of Grounds - General,3030,Various Items,09/03/2016,415041,66.65,NET,Countrywide Farmers,55687J
Gloucester City Council,23UE,Civica It Contract,RT270,Contracted Services,6970,IT managed services APR2016,09/03/2016,415177,47916.63,NET,Civica Uk Ltd,10841X
Gloucester City Council,23UE,Council Streetcare Team,HI101,Maint Of Grounds - General,3030,Monk Meadow install telescopic bollard,09/03/2016,415638,399,NET,Greenfields Garden Services Ltd,48130G
Gloucester City Council,23UE,Council Streetcare Team,HI101,Maint Of Grounds - General,3030,Monk meadow post & rail fence,09/03/2016,415639,297.95,NET,Greenfields Garden Services Ltd,48130G
Gloucester City Council,23UE,Countryside Unit,LP201,Maint Of Grounds - General,3030,Various Items,09/03/2016,415041,6.82,NET,Countrywide Farmers,55687J
Gloucester City Council,23UE,Crematorium,HC200,Vocational Training,2970,seminar March 2016,09/03/2016,415495,450,NET,Institute Of Cemetery & Crematorium M'Ment,01116T
Gloucester City Council,23UE,Disabled Facilities Grants,CY013,Disabled Facility Grants,74,Disabled Facilities Grant - MDF5123,09/03/2016,415724,5401.86,CAP,Mears Home Improvement Ltd,00096G
Gloucester City Council,23UE,Docks Complex - Castlemeads Cp,RB210,Contracted Services,6970,GC FIXED OVERHEAD,09/03/2016,415173,773.48,NET,Apcoa Parking (Uk) Ltd,09954M
Gloucester City Council,23UE,Docks Complex - Castlemeads Cp,RB210,Contracted Services,6970,GC P&D AND HEAD CAMS,09/03/2016,415171,2090.62,NET,Apcoa Parking (Uk) Ltd,09954M
Gloucester City Council,23UE,Docks Complex - Castlemeads Cp,RB210,Contracted Services,6970,GC VARIABLE ENFORCEMENT,09/03/2016,415174,583.06,NET,Apcoa Parking (Uk) Ltd,09954M
Gloucester City Council,23UE,Environmental Planning,LM340,Fees For Services Received,5350,trees,09/03/2016,415636,88,NET,Mount Pleasant Trees,51352K
Gloucester City Council,23UE,Environmental Planning,LM340,Operational Materials,5070,trees,09/03/2016,415634,120.42,NET,Mount Pleasant Trees,51352K
Gloucester City Council,23UE,REDACTED,REDACTED,REDACTED,REDACTED,REDACTED,09/03/2016,REDACTED,0,NET,REDACTED,REDACTED
Gloucester City Council,23UE,Flooding And Drainage,HE306,Maint Of Grounds - General,3030,Clear road gullies & manholes,09/03/2016,414986,230,NET,Three Counties Drain Service,44033V
Gloucester City Council,23UE,Homelessness,CH120,Rent In Advance,5516,RIA & Deposit,09/03/2016,415725,469.48,NET,Cgt Lettings Ltd,09004C
Gloucester City Council,23UE,Homelessness Prevention,CH122,Fees For Services Received,5350,RIA & Deposit,09/03/2016,415725,630,NET,Cgt Lettings Ltd,09004C
Gloucester City Council,23UE,Kings Quarter,RY146,Contract Payments,20,Bentinck House underlease assignment,09/03/2016,415623,2993.5,CAP,Bevan Brittan,06630Y
Gloucester City Council,23UE,Kings Quarter,RY146,Contract Payments,20,Bruton Way traffic management 28/2/16,09/03/2016,415640,350,CAP,Greenfields Garden Services Ltd,48130G
Gloucester City Council,23UE,Kings Quarter,RY146,Contract Payments,20,Bus Station London Plane tree removal,09/03/2016,415616,3250,CAP,Greenfields Garden Services Ltd,48130G
Gloucester City Council,23UE,Kings Quarter,RY146,Contract Payments,20,Grosvenor House demolition survey,09/03/2016,415466,4624.8,CAP,Smiths (Gloucester) Ltd,40995Z
Gloucester City Council,23UE,Kings Quarter,RY146,Contract Payments,20,Taxi Rank Kiosk Demolition,09/03/2016,410014,335.32,CAP,Ken Pink Plant Hire Ltd,56884V
Gloucester City Council,23UE,National Express,LT105,Materials For Sale,5080,Credit Notes taken in error,09/03/2016,415722,370.92,NET,National Express Ltd,31455K
Gloucester City Council,23UE,Nms Contract,HI102,Additional Non-Tender Items,6973,Original Invoice Undercharged,09/03/2016,414213,694.97,NET,Enterprise (Aol) Ltd,06695G
Gloucester City Council,23UE,Nms Contract,HI102,Contracted Services,6970,FEB2015 COMMODITY TOP UP,09/03/2016,415191,25856,NET,Enterprise (Aol) Ltd,06695G
Gloucester City Council,23UE,Nms Contract,HI102,Contracted Services,6970,MARCH 2016 SERVICE FEE,09/03/2016,415179,474981.93,NET,Enterprise (Aol) Ltd,06695G
Gloucester City Council,23UE,Nms Contract,HI102,Contracted Services,6970,Pension Recharge January 2016,09/03/2016,415001,10309.93,NET,Enterprise (Aol) Ltd,06695G
Gloucester City Council,23UE,Off Street Car Parks,PP110,Contracted Services,6970,GC OTHER ITEMS,09/03/2016,415172,10687.32,NET,Apcoa Parking (Uk) Ltd,09954M
Gloucester City Council,23UE,Off Street Car Parks,PP110,Contracted Services,6970,GC VARIABLE ENFORCEMENT,09/03/2016,415174,3197.85,NET,Apcoa Parking (Uk) Ltd,09954M
Gloucester City Council,23UE,Off Street Car Parks,PP110,Contracted Services,6970,GC VEHICLES,09/03/2016,415170,454.26,NET,Apcoa Parking (Uk) Ltd,09954M
Gloucester City Council,23UE,Off Street Car Parks,PP110,Rents,3200,Kings Walk car park rent MAR-JUN16,09/03/2016,415407,46250,NET,Colliers International,15540S
Gloucester City Council,23UE,Parks Contract Management,LP100,Maint Of Grounds - General,3030,"King George, cradle swing",09/03/2016,415142,154.97,NET,Enterprise (Aol) Ltd,06695G
Gloucester City Council,23UE,Retail Market - Landlord,HM300,Service Charges,3020,Service Charge March - June 2016,09/03/2016,414976,11015.5,NET,Workman Llp,11021M
Gloucester City Council,23UE,Tree Planting Grant Funded,LY150,Contract Payments,20,HOLMLEIGH PARK PINE TREES,09/03/2016,415458,690,CAP,Greenfields Garden Services Ltd,48130G
Gloucester City Council,23UE,Vehicles,RS140,Fuel,4012,vehicle fuel,09/03/2016,415604,169.22,NET,Allstar Business Solutions Ltd (Arval),06594A
Gloucester City Council,23UE,Docks Complex - Services,RB100,Recycling,3631,FEB16 confidential waste,10/03/2016,415430,18,NET,Printwaste Recycling,57114W
Gloucester City Council,23UE,Docks Complex - Services,RB100,Recycling,3631,FEB16 recycling - Docks,10/03/2016,415431,119.7,NET,Printwaste Commercial Company Ltd,52556F
Gloucester City Council,23UE,Gloucester Guildhall,LA100,General Repair/Maint Buildings,3000,UNBLOCK TOILETS,10/03/2016,414532,255,NET,Three Counties Drain Service,44033V
Gloucester City Council,23UE,Green Garden Waste,HI105,Fees For Services Received,5350,Collection of Green Bins,10/03/2016,414972,8264.92,NET,Enterprise (Aol) Ltd,06695G
Gloucester City Council,23UE,Kings Quarter,RY146,Contract Payments,20,Reference: 46078067,10/03/2016,415769,2034,CAP,Wales & West Utilities,04681Z
Gloucester City Council,23UE,Planning Policy & Heritage,PT300,Basic Pay - Temporary Staff,2751,TEMPORARY STAFF,10/03/2016,414472,2280.42,NET,The Oyster Partnership Limited,14900T
Gloucester City Council,23UE,Shopmobility,PE200,Maintenance Of Equipment,5030,various repairs,10/03/2016,415614,392.8,NET,Disabled Care & Mobility,12675V
Gloucester City Council,23UE,Statutory Testing,RS310,Legionella,3018,MAR-MAY16 DOMESTIC WATER CONTRACT,10/03/2016,415180,3146.25,NET,Kingfisher Environmental Services Ltd,04738V
Gloucester City Council,23UE,Tourism Marketing,LT100,Advertising And Publicity,5702,foamex printing,10/03/2016,415440,275,NET,Squirty Ink,13834P
Gloucester City Council,23UE,Tourism Marketing,LT100,Exhibits And Collections,5038,vinyl graphics,10/03/2016,415438,243,NET,Squirty Ink,13834P
Gloucester City Council,23UE,16 Commercial Road,RB539,General Repair/Maint Buildings,3000,28/1-25/2/16 scaff 16 Commercial Rd,11/03/2016,415621,172,NET,King Scaffolding Ltd,16240Y
Gloucester City Council,23UE,Business Planning & Performanc,RL500,Fees For Services Received,5350,HIRE 08/10/14,11/03/2016,394597,192,NET,Uss Unique Sound Systems Ltd,59571S
Gloucester City Council,23UE,Business Transformation & Tech,RT700,Computer Consumables,5422,Various Items,11/03/2016,414978,38.26,NET,Dell Computers Corporation Ltd,55920C
Gloucester City Council,23UE,Business Transformation & Tech,RT700,Computer Software Maintenance,5427,Intranomic support 2016/17,11/03/2016,414809,3500,NET,Styletech Solutions Ltd,01930F
Gloucester City Council,23UE,Business Transformation & Tech,RT700,Fees For Services Received,5350,16/17 support for 103 Revs&Bens users,11/03/2016,415631,3153.65,NET,Northgate Public Services Uk Ltd,08982S
Gloucester City Council,23UE,Business Transformation & Tech,RT700,Internet Service Provider Fees,5429,Charges Feb - Mar 2016,11/03/2016,415081,107.96,NET,Virgin Media Business,01869B
Gloucester City Council,23UE,Business Transformation & Tech,RT700,Internet Service Provider Fees,5429,Charges Mar - Apr 2016,11/03/2016,415066,80,NET,Virgin Media Payments Ltd,09376J
Gloucester City Council,23UE,Business Transformation & Tech,RT700,Mobile Phones,5409,a/c 5500385 call charges,11/03/2016,414473,70,NET,O2 Uk,16206Y
Gloucester City Council,23UE,Business Transformation & Tech,RT700,Mobile Phones,5409,acct 5500385 call charges,11/03/2016,414474,137.57,NET,O2 Uk,16206Y
Gloucester City Council,23UE,Cemeteries,HC300,Basic Pay - Temporary Staff,2751,Temporary staff w/e 28/2/16,11/03/2016,415602,439.88,NET,Premiere Employment Group Ltd,55468Z
Gloucester City Council,23UE,Cemeteries,HC300,Basic Pay - Temporary Staff,2751,temporary staff w/e 28/2/16,11/03/2016,415601,439.88,NET,Premiere Employment Group Ltd,55468Z
Gloucester City Council,23UE,Cleansing Services Admin,HI100,Additional Non-Tender Items,6973,Stickering Bins,11/03/2016,415144,11616,NET,Enterprise (Aol) Ltd,06695G
Gloucester City Council,23UE,Countryside Unit,LP201,Cleaning Materials,3600,cleaning materials,11/03/2016,415620,79.79,NET,Acs Business Supplies Ltd,15791M
Gloucester City Council,23UE,Crematorium,HC200,Cleaning Materials,3600,cleaning materials,11/03/2016,415620,178.47,NET,Acs Business Supplies Ltd,15791M
Gloucester City Council,23UE,Docks Complex - Services,RB100,Cleaning Materials,3600,cleaning materials,11/03/2016,415620,633.59,NET,Acs Business Supplies Ltd,15791M
Gloucester City Council,23UE,Folk Museum,LM210,Other Minor Supplies Services,5590,LED Lighting re-design 50s room,11/03/2016,414982,674,NET,Total Lighting Controls Ltd,02415U
Gloucester City Council,23UE,Gl1 Emergency Works,RY160,Contract Payments,20,Business Tenancy,11/03/2016,415875,2021.72,CAP,Bruton Knowles,57534T
Gloucester City Council,23UE,Gloucester Guildhall,LA100,Cleaning Materials,3600,cleaning materials,11/03/2016,415620,181.38,NET,Acs Business Supplies Ltd,15791M
Gloucester City Council,23UE,Gloucester Guildhall,LA100,Maintenance Of Equipment,5030,"Haze fluid, Gel, Fastfold Projection Scn",11/03/2016,415175,153.25,NET,Uss Unique Sound Systems Ltd,59571S
Gloucester City Council,23UE,Land Searches,RO300,Fees For Services Received,5350,OCT-DEC2015 Con29 search responsses,11/03/2016,415786,6138.6,NET,Gloucestershire County Council,18650D
Gloucester City Council,23UE,Registration Of Electors,RS400,Postages,5400,Business Mail Jan & Feb 16,11/03/2016,415857,889.78,NET,Royal Mail S.Wales & South West,35830S
Gloucester City Council,23UE,Retail Market - Landlord,HM300,Cleaning Materials,3600,cleaning materials,11/03/2016,415620,33.7,NET,Acs Business Supplies Ltd,15791M
Gloucester City Council,23UE,Shopmobility,PE200,Cleaning Materials,3600,MAR16 medical & sanitary waste service,11/03/2016,414830,12.14,NET,Ocs Group Uk Limited T/A Cannon,06506A
Gloucester City Council,23UE,Asset Management,RS300,Basic Pay - Temporary Staff,2751,Consultancy Services Feb 16,14/03/2016,415813,7325,NET,Ardley Associates,09369F
Gloucester City Council,23UE,Cemeteries,HC300,Purch Vehicles/M. Plant <5000,4000,Padlock & Key,14/03/2016,415874,89.8,NET,T H White Ltd,08413P
Gloucester City Council,23UE,Cemeteries,HC300,Routine R And M - Vehicles,4011,Digger Clips,14/03/2016,415832,88,NET,Jay Bee Plant Sales Ltd,11156L
Gloucester City Council,23UE,Cemeteries,HC300,Trade Refuse Tipping Fees,6297,Dumper hire FEB16,14/03/2016,415418,380,NET,Allstone Sand & Gravel Aggregates Ltd,00940M
Gloucester City Council,23UE,Cemeteries,HC300,Trade Refuse Tipping Fees,6297,GREEN WASTE SKIP EXCHANGE,14/03/2016,415489,420,NET,Allstone Sand & Gravel Aggregates Ltd,00940M
Gloucester City Council,23UE,Cemeteries,HC300,Trade Refuse Tipping Fees,6297,INERT WASTE SKIP EXCHANGE,14/03/2016,415487,672.4,NET,Allstone Sand & Gravel Aggregates Ltd,00940M
Gloucester City Council,23UE,Cemeteries,HC300,Trade Refuse Tipping Fees,6297,skip exchange,14/03/2016,415488,588.2,NET,Allstone Sand & Gravel Aggregates Ltd,00940M
Gloucester City Council,23UE,Cemeteries,HC300,Trade Refuse Tipping Fees,6297,Various Items,14/03/2016,413868,360,NET,Allstone Sand & Gravel Aggregates Ltd,00940M
Gloucester City Council,23UE,Cems/Crems Admin,HC100,Security Services Fees,5351,Services February 2016,14/03/2016,415870,14.11,NET,G4s Cash Solutions (Uk) Ltd,04290V
Gloucester City Council,23UE,Coll Fund Revenue Account,ZC100,Nndr Central Share,7474,BRR12 Pooling Payments,14/03/2016,415899,421343,NET,Gloucestershire County Council,18650D
Gloucester City Council,23UE,Coll Fund Revenue Account,ZC100,Nndr Tariff,7473,BRR12 Pooling Payments,14/03/2016,415900,1320306.02,NET,Stroud District Council,74737T
Gloucester City Council,23UE,Crematorium,HC200,Oper Leases - Equipment,5029,Various Items,14/03/2016,415838,353.68,NET,Zagota Creations,03211D
Gloucester City Council,23UE,Docks Complex - Catering Servs,RB110,Sale Of Council Products,9220,Food,14/03/2016,415824,99,NET,Janes Pantry,24500W
Gloucester City Council,23UE,Docks Complex - Catering Servs,RB110,Sale Of Council Products,9220,Food,14/03/2016,415825,27.17,NET,Janes Pantry,24500W
Gloucester City Council,23UE,Docks Complex - Services,RB100,Security Services Fees,5351,Services February 2016,14/03/2016,415870,3.53,NET,G4s Cash Solutions (Uk) Ltd,04290V
Gloucester City Council,23UE,Employers Pension Contribs,ZR355,Pension Contribs Incl Backf,2901,Pension Deficit,14/03/2016,415898,217666.66,NET,Gloucestershire County Council,10614L
Gloucester City Council,23UE,REDACTED,REDACTED,REDACTED,REDACTED,REDACTED,14/03/2016,REDACTED,51.5,NET,REDACTED,REDACTED
Gloucester City Council,23UE,Green Transport Policy,PJ130,Other Minor Supplies Services,5590,Removal of car-club bays,14/03/2016,415149,10273.99,NET,Gloucestershire County Council,18650D
Gloucester City Council,23UE,Guildhall Cinema,LA202,Hire Of Equipment,5020,Various Items,14/03/2016,415837,17.62,NET,Nft Logistics Ltd,13505N
Gloucester City Council,23UE,REDACTED,REDACTED,REDACTED,REDACTED,REDACTED,14/03/2016,REDACTED,100,NET,REDACTED,REDACTED
Gloucester City Council,23UE,REDACTED,REDACTED,REDACTED,REDACTED,REDACTED,14/03/2016,REDACTED,431.38,NET,REDACTED,REDACTED
Gloucester City Council,23UE,REDACTED,REDACTED,REDACTED,REDACTED,REDACTED,14/03/2016,REDACTED,121.65,NET,REDACTED,REDACTED
Gloucester City Council,23UE,Hackney Carriages,HL100,Fees For Services Received,5350,FEB 16 DBS checks,14/03/2016,415411,660,NET,Disclosure And Barring Service,00119W
Gloucester City Council,23UE,Homelessness,CH120,Board And Lodging,5515,Nov-15,14/03/2016,415839,6667.56,NET,Gloucester City Homes,05244T
Gloucester City Council,23UE,Homelessness,CH120,Board And Lodging,5515,October 2015 Nova House Voids,14/03/2016,415840,2159.52,NET,Gloucester City Homes,05244T
Gloucester City Council,23UE,REDACTED,REDACTED,REDACTED,REDACTED,REDACTED,14/03/2016,REDACTED,167.2,NET,REDACTED,REDACTED
Gloucester City Council,23UE,REDACTED,REDACTED,REDACTED,REDACTED,REDACTED,14/03/2016,REDACTED,400,NET,REDACTED,REDACTED
Gloucester City Council,23UE,Human Resources,EH100,Fees For Services Received,5350,Employee assistance programme - 31/12/16,14/03/2016,412390,402.5,NET,Gloucestershire County Council,18650D
Gloucester City Council,23UE,Investment Property,RB500,Water Supply,3400,ACCT 6540022682,14/03/2016,414402,150.91,NET,Severn Trent Water,01823H
Gloucester City Council,23UE,Land Searches,RO300,Fees For Services Received,5350,Land charges Q3 2015/16 - 93 in total,14/03/2016,415787,1860,NET,Gloucestershire County Council,18650D
Gloucester City Council,23UE,REDACTED,REDACTED,REDACTED,REDACTED,REDACTED,14/03/2016,REDACTED,650,NET,REDACTED,REDACTED
Gloucester City Council,23UE,REDACTED,REDACTED,REDACTED,REDACTED,REDACTED,14/03/2016,REDACTED,260,NET,REDACTED,REDACTED
Gloucester City Council,23UE,Organisational Health,RC160,Fees For Services Received,5350,OH Services January 2016,14/03/2016,415811,311.67,NET,Industrial Medical & Safety Services Ltd,10668L
Gloucester City Council,23UE,Retail Market - Landlord,HM300,Operational Equipment <5000,5012,Lamps & Recycling Contribution Charge,14/03/2016,415809,61.29,NET,City Electrical Factors,09325C
Gloucester City Council,23UE,Retail Market - Landlord,HM300,Operational Equipment <5000,5012,Monthly Rental March 16,14/03/2016,415808,280.56,NET,System Rental Uk Ltd,03239E
Gloucester City Council,23UE,Safe At Home Grants,CY012,Other Capital Grants,89,Mears Contribution 3rd Quarter,14/03/2016,415823,4934,CAP,Gloucestershire County Council,18650D
Gloucester City Council,23UE,Theatre Tokens,LT106,Materials For Sale,5080,Tickets February 2016,14/03/2016,415861,50,NET,Society Of London Theatre,05656Z
Gloucester City Council,23UE,Theatre Tokens,LT106,Sale Of Goods And Services,9230,Tickets February 2016,14/03/2016,415861,-2.5,NET,Society Of London Theatre,05656Z
Gloucester City Council,23UE,Tic Trading,LT110,Materials For Sale,5080,Belle Rose Pig,14/03/2016,415829,288,NET,Keel Toys,57684W
Gloucester City Council,23UE,Utilities,PT502,Electricity Supply,3110,Charges 23/02 - 08/03 2016,14/03/2016,415862,23417.7,NET,West Mercia Energy,11669Z
Gloucester City Council,23UE,Utilities,PT502,Gas Supply,3100,Charges 23/02 - 08/03 2016,14/03/2016,415862,261.65,NET,West Mercia Energy,11669Z
Gloucester City Council,23UE,Asset Management,RS300,Licences,5703,Annual Rental 16/17,15/03/2016,415847,1325,NET,Kel,13644X
Gloucester City Council,23UE,Civica Contract Revs & Bens,RT250,Fees For Services Received,5350,APR2016 core Revs & Bens service,15/03/2016,415410,137322.7,NET,Civica Uk Ltd,10841X
Gloucester City Council,23UE,Disabled Facilities Grants,CY013,Disabled Facility Grants,74,Disabled Facilities Grant - MDF5177,15/03/2016,415931,3999,CAP,Dolphin Lifts (Western) Ltd,10661B
Gloucester City Council,23UE,Guildhall Bar And Caf�,LA210,Catering Provisions -Liquor,5111,Liquor,15/03/2016,415843,235.37,NET,Cellar Supplies Cheltenham Ltd,01563L
Gloucester City Council,23UE,Homelessness Prevention,CH122,Fees For Services Received,5350,medical report,15/03/2016,415408,20.5,NET,Gloucester Health Access Centre,11611H
Gloucester City Council,23UE,Investment Property,RB500,Cctv Servicing & Maint,3016,Annual Contract Charges,15/03/2016,415053,306.3,NET,Chubb Fire & Security Ltd,54582K
Gloucester City Council,23UE,Planning Policy & Heritage,PT300,Basic Pay - Temporary Staff,2751,temporary staff w/e 21/2/16,15/03/2016,414896,2271.41,NET,The Oyster Partnership Limited,14900T
Gloucester City Council,23UE,Planning Policy & Heritage,PT300,Basic Pay - Temporary Staff,2751,TEMP STAFF W/E 14/2/16,15/03/2016,414625,2271.41,NET,The Oyster Partnership Limited,14900T
Gloucester City Council,23UE,Planning Policy & Heritage,PT300,Basic Pay - Temporary Staff,2751,temp staff w/e 28/2/16,15/03/2016,415625,2271.41,NET,The Oyster Partnership Limited,14900T
Gloucester City Council,23UE,Planning Policy & Heritage,PT300,Basic Pay - Temporary Staff,2751,temp staff w/e 31/1/16,15/03/2016,414095,2402.73,NET,The Oyster Partnership Limited,14900T
Gloucester City Council,23UE,Statutory Testing,RS310,Legionella,3018,Refund Credit Note taken twice,15/03/2016,415930,80,NET,Kingfisher Environmental Services Ltd,04738V
Gloucester City Council,23UE,Vehicles,RS140,Fuel,4012,Fuel,15/03/2016,415863,140.8,NET,Allstar Business Solutions Ltd (Arval),06594A
Gloucester City Council,23UE,City Museum,RY153,Contract Payments,20,Eastgate Rooftop Car Park,16/03/2016,415854,1275,CAP,Goddard Consulting Llp,10598G
Gloucester City Council,23UE,Housing Strategy & Enabling,CH110,Fees For Services Received,5350,Black Dog Way,16/03/2016,415853,500,NET,Alder King,02367D
Gloucester City Council,23UE,Public Health,HD200,Other Minor Supplies Services,5590,Steel Goals,16/03/2016,415810,500,NET,Broxap Ltd,01141U
Gloucester City Council,23UE,Townscape Heritage Initiative,LY145,Contract Payments,20,Grant,16/03/2016,416038,5702,CAP,Chobe Holdings,16418E
Gloucester City Council,23UE,Tree Planting Grant Funded,LY150,Contract Payments,20,Plants,16/03/2016,415991,50.32,CAP,Mount Pleasant Trees,51352K
Gloucester City Council,23UE,Aspire Admin Charges,LC105,Security Services Fees,5351,Services April 2016,17/03/2016,416017,184.94,NET,G4s Cash Solutions (Uk) Ltd,04290V
Gloucester City Council,23UE,Cemeteries,HC300,Other Minor Supplies Services,5590,Garden Rake,17/03/2016,415845,46.24,NET,Spaldings,48759Y
Gloucester City Council,23UE,Cems/Crems Admin,HC100,Security Services Fees,5351,Services April 2016,17/03/2016,416017,105.42,NET,G4s Cash Solutions (Uk) Ltd,04290V
Gloucester City Council,23UE,City Museum And Art Gallery,LM200,Security Services Fees,5351,Services April 2016,17/03/2016,416017,92.47,NET,G4s Cash Solutions (Uk) Ltd,04290V
Gloucester City Council,23UE,Civica Contract Revs & Bens,RT250,Contracted Services,6970,pension excess JAN16,17/03/2016,414460,11461.1,NET,Civica Uk Ltd,10841X
Gloucester City Council,23UE,Client Revs & Bens Contract,RT240,Bailiffs Fees,5368,VAT on fees collected,17/03/2016,415841,0,NET,Phoenix Commercial Collections Ltd,13435J
Gloucester City Council,23UE,Docks Complex - Services,RB100,Security Services Fees,5351,Services April 2016,17/03/2016,416017,276.2,NET,G4s Cash Solutions (Uk) Ltd,04290V
Gloucester City Council,23UE,Folk Museum,LM210,Security Services Fees,5351,Annual Contract,17/03/2016,415047,315.22,NET,Chubb Fire & Security Ltd,54582K
Gloucester City Council,23UE,Folk Museum,LM210,Security Services Fees,5351,Services April 2016,17/03/2016,416017,92.47,NET,G4s Cash Solutions (Uk) Ltd,04290V
Gloucester City Council,23UE,Gloucester Guildhall,LA100,Security Services Fees,5351,Services April 2016,17/03/2016,416017,92.47,NET,G4s Cash Solutions (Uk) Ltd,04290V
Gloucester City Council,23UE,Legal Services,RS200,Fees For Services Received,5350,One Off Joining Costs,17/03/2016,415852,5714.19,NET,Tewkesbury Borough Council,43800C
Gloucester City Council,23UE,Shopmobility,PE200,Maintenance Of Equipment,5030,various repairs,17/03/2016,415615,1089.2,NET,Disabled Care & Mobility,12675V
Gloucester City Council,23UE,Tourism Marketing,LT100,Security Services Fees,5351,Services April 2016,17/03/2016,416017,92.47,NET,G4s Cash Solutions (Uk) Ltd,04290V
Gloucester City Council,23UE,Unallocated It,RY525,It Software,57,Desktop Refresh,17/03/2016,415812,44443.74,CAP,Civica Uk Ltd,10841X
Gloucester City Council,23UE,Arts Educational Promotions,LA610,Arts Grants,7113,Heritage Project,18/03/2016,415975,6666.67,NET,University Of Gloucestershire,57991H
Gloucester City Council,23UE,Asbru - Other Funders,FP846,Other Minor Supplies Services,5590,Fund Raised at Paws on Patrol,18/03/2016,416053,473.1,NET,Wags Retired Poilice Dogs,16425H
Gloucester City Council,23UE,Business Transformation & Tech,RT700,Computer Hardware <5000,5420,Ticket Printer & Scanner,18/03/2016,415958,1190,NET,Toptix (Uk) Ltd,16411V
Gloucester City Council,23UE,Business Transformation & Tech,RT700,Computer Software <5000,5425,Implementation Services,18/03/2016,415936,7738,NET,Esri (Uk) Ltd,57836X
Gloucester City Council,23UE,Business Transformation & Tech,RT700,Computer Software <5000,5425,Information@Work support 2016-17,18/03/2016,416015,3188.34,NET,Northgate Public Services Uk Ltd,08982S
Gloucester City Council,23UE,Business Transformation & Tech,RT700,Computer Software <5000,5425,Information@Work support 2016-17,18/03/2016,416016,834.33,NET,Northgate Public Services Uk Ltd,08982S
Gloucester City Council,23UE,Cemeteries,HC300,General Repair/Maint Buildings,3000,Plywood,18/03/2016,416022,404,NET,Millington & Ramstedt Ltd,29815S
Gloucester City Council,23UE,Cemeteries,HC300,Operational Materials,5070,Various Items,18/03/2016,415935,509.5,NET,Teleshore (Uk) Ltd,56819G
Gloucester City Council,23UE,Contact Centre,RB300,Other Minor Supplies Services,5590,Out of Hours monitoring,18/03/2016,415945,290.6,NET,Worcestershire Telecare,16419C
Gloucester City Council,23UE,Contact Centre,RB300,Publications,5060,Papers,18/03/2016,415951,150.75,NET,Ymk Supermarket,55281U
Gloucester City Council,23UE,Countryside Unit,LP201,Maint Of Grounds - General,3030,Metal Cutting Discs,18/03/2016,415955,13.32,NET,Screwfix Direct,54672H
Gloucester City Council,23UE,Crematorium,HC200,Memorial Plaques,5053,Plaque,18/03/2016,415954,107.7,NET,Treasured Memories Limited,11058H
Gloucester City Council,23UE,Development Management,PT200,Microfilming / Cd-Rom Storage,5330,Storage February 2016,18/03/2016,415815,22,NET,Transmedia Technology Ltd,08635T
Gloucester City Council,23UE,Docks Complex - Services,RB100,Service Charges,3020,Service Charge Oct 15 - Mar 16,18/03/2016,415939,1000,NET,Gloucester Quays Management Ltd,13497K
Gloucester City Council,23UE,Employers Pension Contribs,ZR355,Pension Contribs Incl Backf,2901,Pension Scheme,18/03/2016,415866,26702.86,NET,Gloucestershire County Council,10614L
Gloucester City Council,23UE,Environmental Planning,LM340,Operational Materials,5070,Netheridge Reserve,18/03/2016,415818,1500,NET,Jpu Services Ltd,11056K
Gloucester City Council,23UE,Environmental Planning,LM340,Repair/Maint Of Monuments,3004,Plaque Refurbishment,18/03/2016,415989,185.25,NET,Leander Architectural,02831Z
Gloucester City Council,23UE,Events,LT410,Events,5952,Fairgame Theatre,18/03/2016,415990,2000,NET,Strike A Light,16195B
Gloucester City Council,23UE,Folk Museum,LM210,Care Of Collections,5039,Data Loggers,18/03/2016,415957,2174.95,NET,Gemini Data Loggers (Uk) Ltd,16239G
Gloucester City Council,23UE,General Drainage Works,PY241,Contract Payments,20,Survey & Drain Trace,18/03/2016,415856,445,CAP,Monument Geomatics,11065F
Gloucester City Council,23UE,Grants To Voluntary Sector,FG100,Members Allocation Fund,7100F,Grant,18/03/2016,416051,1000,NET,Together In Matson,53760RV
Gloucester City Council,23UE,Homelessness Prevention,CH122,Basic Pay - Temporary Staff,2751,Temp Hours w/e 06/03/2016,18/03/2016,415960,323.79,NET,Greenacre Recruitment Ltd,15817V
Gloucester City Council,23UE,REDACTED,REDACTED,REDACTED,REDACTED,REDACTED,18/03/2016,REDACTED,300,NET,REDACTED,REDACTED
Gloucester City Council,23UE,Innsworth Lane Sports Pitches,LY079,Contract Payments,20,Mowing & Weed Spraying,18/03/2016,415953,900,CAP,Gdb Groundcare,15552J
Gloucester City Council,23UE,Innsworth Lane Sports Pitches,LY079,Contract Payments,20,Various Items,18/03/2016,415952,1182,CAP,Gdb Groundcare,15552J
Gloucester City Council,23UE,Investment Property,RB500,General Repair/Maint Buildings,3000,Engineer 26/02/2016,18/03/2016,415996,75,NET,Pickerings Europe Ltd,58816U
Gloucester City Council,23UE,Meet & Greet,FP309,Advertising And Publicity,5702,Adverts,18/03/2016,415942,450,NET,Diversified Business Communications Uk Ltd,15016R
Gloucester City Council,23UE,Members Support,RC300,Members Training,5535,Conference Income,18/03/2016,415956,250,NET,Improvement & Development Agency,55793J
Gloucester City Council,23UE,Rehousing,CH111,Fees For Services Received,5350,Medical Report,18/03/2016,415941,20.5,NET,New Court Surgery,16242U
Gloucester City Council,23UE,Safer Stronger Communities,FP841,Other Minor Supplies Services,5590,Dot.com funding,18/03/2016,415938,300,NET,Gloucester City Homes,05244T
Gloucester City Council,23UE,Safer Stronger Communities,FP841,Other Minor Supplies Services,5590,T shirts,18/03/2016,415937,250,NET,Infobuzz Ltd,4743C
Gloucester City Council,23UE,Southgate Moorings,RB537,Service Charges,3020,Service Charge Oct 15 - Mar 16,18/03/2016,415939,3000,NET,Gloucester Quays Management Ltd,13497K
Gloucester City Council,23UE,Tic Trading,LT110,Materials For Sale,5080,Fridge Magnets,18/03/2016,415831,174,NET,Magnartism Ltd,09098P
Gloucester City Council,23UE,Kings Quarter,RY146,Contract Payments,20,HIGH PRESSURE WATER JETTING,21/03/2016,414500,1500,CAP,Three Counties Drain Service,44033V
Gloucester City Council,23UE,Marketing Gloucester Charges,RC433,Events,5952,Event Programme - Last payment,21/03/2016,416089,25000,NET,Marketing Gloucester Ltd,08925E
Gloucester City Council,23UE,Building Control,PT400,Fees For Services Received,5350,Building Control Work,22/03/2016,415949,5058.13,NET,Stroud District Council,42500D
Gloucester City Council,23UE,Client Revs & Bens Contract,RT240,Subscriptions,5600,Annual Subscription,22/03/2016,412273,760,NET,Rating Publishers Ltd,49604W
Gloucester City Council,23UE,Council Streetcare Team,HI101,Window Cleaning,3610,Clean External Windows,22/03/2016,415828,130,NET,Poles Apart Window Cleaning,11636R
Gloucester City Council,23UE,Crematorium Heat Exchanger,HY048,Capital General Repairs & Main,13,Crem scaffolding FEB16,22/03/2016,415622,1470,CAP,King Scaffolding Ltd,16240Y
Gloucester City Council,23UE,Development Management,PT200,Advertising And Publicity,5702,Advertisement 03/03/2016,22/03/2016,415833,175.3,NET,Local World Ltd,08556P
Gloucester City Council,23UE,General Works Fund,RY203,Remedial Works,22,Crem asbestos removal & disposal,22/03/2016,414825,4367,CAP,Maylarch Environmental Ltd,16398J
Gloucester City Council,23UE,Guildhall Events,LA200,Advertising And Publicity,5702,digital print,22/03/2016,415437,64,NET,Squirty Ink,13834P
Gloucester City Council,23UE,REDACTED,REDACTED,REDACTED,REDACTED,REDACTED,22/03/2016,REDACTED,1125,NET,REDACTED,REDACTED
Gloucester City Council,23UE,REDACTED,REDACTED,REDACTED,REDACTED,REDACTED,22/03/2016,REDACTED,100,NET,REDACTED,REDACTED
Gloucester City Council,23UE,REDACTED,REDACTED,REDACTED,REDACTED,REDACTED,22/03/2016,REDACTED,1500,NET,REDACTED,REDACTED
Gloucester City Council,23UE,REDACTED,REDACTED,REDACTED,REDACTED,REDACTED,22/03/2016,REDACTED,1347.6,NET,REDACTED,REDACTED
Gloucester City Council,23UE,REDACTED,REDACTED,REDACTED,REDACTED,REDACTED,22/03/2016,REDACTED,60,NET,REDACTED,REDACTED
Gloucester City Council,23UE,REDACTED,REDACTED,REDACTED,REDACTED,REDACTED,22/03/2016,REDACTED,544,NET,REDACTED,REDACTED
Gloucester City Council,23UE,REDACTED,REDACTED,REDACTED,REDACTED,REDACTED,22/03/2016,REDACTED,368.2,NET,REDACTED,REDACTED
Gloucester City Council,23UE,REDACTED,REDACTED,REDACTED,REDACTED,REDACTED,22/03/2016,REDACTED,500,NET,REDACTED,REDACTED
Gloucester City Council,23UE,Investment Property,RB500,Lift Maintenance,3051,BLACKFRIARS LIFT 20/1/16,22/03/2016,415505,93.75,NET,Pickerings Europe Ltd,58816U
Gloucester City Council,23UE,Investment Property,RB500,Lift Maintenance,3051,EASTGATE MARKET LIFT 23/12/15,22/03/2016,415506,112.5,NET,Pickerings Europe Ltd,58816U
Gloucester City Council,23UE,Investment Property,RB500,Repair/Maint Of Fixed Plant,3006,City Museum MTC 8&12/1/16,22/03/2016,415780,511.87,NET,Axiom Building Services,14908A
Gloucester City Council,23UE,Investment Property,RB500,Repair/Maint Of Fixed Plant,3006,Guildhall MTC 13&14/1/16,22/03/2016,415781,987.28,NET,Axiom Building Services,14908A
Gloucester City Council,23UE,Investment Property,RB500,Repair/Maint Of Fixed Plant,3006,HKP MTC 2/2/16,22/03/2016,415783,171.38,NET,Axiom Building Services,14908A
Gloucester City Council,23UE,Rehousing,CH111,Fees For Services Received,5350,medical report,22/03/2016,415417,40,NET,Drs Miller & Mann,10432RV
Gloucester City Council,23UE,Statutory Testing,RS310,Fees For Services Received,5350,BLACKFRIARS FIRE ALARM BATTERIES,22/03/2016,415508,113.24,NET,Allcoopers Ltd,52921E
Gloucester City Council,23UE,Statutory Testing,RS310,Fees For Services Received,5350,FOLK MUSEUM 22/1/16,22/03/2016,415510,48.15,NET,Allcoopers Ltd,52921E
Gloucester City Council,23UE,Swrda Property Tfr,RB503,Fees For Services Received,5350,Punchline Triple Editorial,22/03/2016,415827,1200,NET,Moose Marketing & Pr,03952A
Gloucester City Council,23UE,The Arbor,HC501,Cleaning Materials,3600,Disposal Units,22/03/2016,415963,34.56,NET,Minster Cleaning Services,02158R
Gloucester City Council,23UE,The Arbor,HC501,Maint Agreements - Buildings,3010,Monthly Machine Warranty,22/03/2016,414985,61.58,NET,Caffeica Ltd,11923J
Gloucester City Council,23UE,Tourism Marketing,LT100,Rents,3200,TIC rent for quarter 25/3/16,22/03/2016,415409,5725,NET,P W Fido & Associates,01210A
Gloucester City Council,23UE,Townscape Heritage Initiative,LY145,Contract Payments,20,Grant,22/03/2016,416086,20857,CAP,Chobe Holdings,16418E
Gloucester City Council,23UE,REDACTED,REDACTED,REDACTED,REDACTED,REDACTED,23/03/2016,REDACTED,100,NET,REDACTED,REDACTED
Gloucester City Council,23UE,Blackfriars,LA609,Hire Of Equipment,5020,Refuse Sacks,23/03/2016,415965,50.63,NET,The Consortium,10365J
Gloucester City Council,23UE,Business Transformation & Tech,RT700,Computer Software Maintenance,5427,Nov15-Nov16 service,23/03/2016,416178,5597.31,NET,Emerson Network Power Ltd,48138P
Gloucester City Council,23UE,Civica Admin Charges,RT105,Postages,5400,Post 29/02 - 11/03 2016,23/03/2016,416231,2047.25,NET,Royal Mail S.Wales & South West,35830S
Gloucester City Council,23UE,Contact Centre,RB300,Stationery,5302,stationery,23/03/2016,416185,22.92,NET,Lyreco Uk Ltd,11746G
Gloucester City Council,23UE,Council Streetcare Team,HI101,Maint Of Grounds - General,3030,Horsbere Meadow knotweed spraying,23/03/2016,416281,270,NET,Greenfields Garden Services Ltd,48130G
Gloucester City Council,23UE,Countryside Unit,LP201,Maint Of Grounds - General,3030,cattle purchase,23/03/2016,416155,3600,NET,REDACTED,REDACTED
Gloucester City Council,23UE,Crematorium,HC200,General Repair/Maint Buildings,3000,Crem emissions monitoring MAR16,23/03/2016,416275,1225,NET,Environmental Scientifics Group Ltd,58118C
Gloucester City Council,23UE,Docks Complex - Catering Servs,RB110,Catering Provisions -Food,5110,BUFFET,23/03/2016,416153,39.6,NET,Janes Pantry,24500W
Gloucester City Council,23UE,Docks Complex - Catering Servs,RB110,Catering Provisions -Food,5110,Food,23/03/2016,416236,29.25,NET,Total Produce Gloucester,12645E
Gloucester City Council,23UE,Docks Complex - Catering Servs,RB110,Catering Provisions -Food,5110,Food,23/03/2016,416237,29.68,NET,Total Produce Gloucester,12645E
Gloucester City Council,23UE,Docks Complex - Catering Servs,RB110,Catering Provisions -Food,5110,Food,23/03/2016,416239,21,NET,Total Produce Gloucester,12645E
Gloucester City Council,23UE,Docks Complex - Catering Servs,RB110,Catering Provisions -Food,5110,Food,23/03/2016,416240,32.22,NET,Total Produce Gloucester,12645E
Gloucester City Council,23UE,Docks Complex - Catering Servs,RB110,Catering Provisions -Food,5110,Food,23/03/2016,416241,41.63,NET,Total Produce Gloucester,12645E
Gloucester City Council,23UE,Docks Complex - Catering Servs,RB110,Catering Provisions -Food,5110,Food,23/03/2016,416242,81.89,NET,Total Produce Gloucester,12645E
Gloucester City Council,23UE,Docks Complex - Catering Servs,RB110,Catering Provisions -Food,5110,Food,23/03/2016,416243,30.33,NET,Total Produce Gloucester,12645E
Gloucester City Council,23UE,Docks Complex - Catering Servs,RB110,Catering Provisions -Food,5110,Food,23/03/2016,416246,24.92,NET,Total Produce Gloucester,12645E
Gloucester City Council,23UE,Docks Complex - Catering Servs,RB110,Catering Provisions -Food,5110,Food,23/03/2016,416247,86.32,NET,Total Produce Gloucester,12645E
Gloucester City Council,23UE,Docks Complex - Catering Servs,RB110,Catering Provisions -Food,5110,Food,23/03/2016,416248,17.75,NET,Total Produce Gloucester,12645E
Gloucester City Council,23UE,Docks Complex - Catering Servs,RB110,Catering Provisions -Food,5110,Food,23/03/2016,416249,15.84,NET,Total Produce Gloucester,12645E
Gloucester City Council,23UE,Docks Complex - Catering Servs,RB110,Catering Provisions -Food,5110,Food,23/03/2016,416250,16.68,NET,Total Produce Gloucester,12645E
Gloucester City Council,23UE,Docks Complex - Catering Servs,RB110,Catering Provisions -Food,5110,Food,23/03/2016,416251,21.15,NET,Total Produce Gloucester,12645E
Gloucester City Council,23UE,Docks Complex - Catering Servs,RB110,Catering Provisions -Food,5110,Food,23/03/2016,416252,15.84,NET,Total Produce Gloucester,12645E
Gloucester City Council,23UE,Docks Complex - Catering Servs,RB110,Catering Provisions -Food,5110,Food,23/03/2016,416253,62.39,NET,Total Produce Gloucester,12645E
Gloucester City Council,23UE,Docks Complex - Catering Servs,RB110,Catering Provisions -Food,5110,Food,23/03/2016,416254,11.34,NET,Total Produce Gloucester,12645E
Gloucester City Council,23UE,Docks Complex - Catering Servs,RB110,Catering Provisions -Food,5110,Food,23/03/2016,416255,8.64,NET,Total Produce Gloucester,12645E
Gloucester City Council,23UE,Docks Complex - Catering Servs,RB110,Catering Provisions -Food,5110,Food,23/03/2016,416256,108.32,NET,Bidvest Foodservice (3663),55585U
Gloucester City Council,23UE,Docks Complex - Catering Servs,RB110,Catering Provisions -Food,5110,Food,23/03/2016,416257,218.32,NET,Bidvest Foodservice (3663),55585U
Gloucester City Council,23UE,Docks Complex - Catering Servs,RB110,Catering Provisions -Food,5110,Food,23/03/2016,416258,216.88,NET,Bidvest Foodservice (3663),55585U
Gloucester City Council,23UE,Docks Complex - Catering Servs,RB110,Catering Provisions -Food,5110,Food,23/03/2016,416272,270.39,NET,Bidvest Foodservice (3663),55585U
Gloucester City Council,23UE,Docks Complex - Catering Servs,RB110,Catering Provisions -Food,5110,Food,23/03/2016,416273,280.05,NET,Bidvest Foodservice (3663),55585U
Gloucester City Council,23UE,Docks Complex - Catering Servs,RB110,Catering Provisions -Food,5110,Milk,23/03/2016,416238,8.64,NET,Total Produce Gloucester,12645E
Gloucester City Council,23UE,Docks Complex - Catering Servs,RB110,Catering Provisions -Food,5110,Milk,23/03/2016,416245,8.64,NET,Total Produce Gloucester,12645E
Gloucester City Council,23UE,Docks Complex - Catering Servs,RB110,Catering Provisions -Food,5110,,23/03/2016,416274,11.34,NET,Total Produce Gloucester,12645E
Gloucester City Council,23UE,Docks Complex - Catering Servs,RB110,Sale Of Council Products,9220,BUFFET,23/03/2016,416154,39.6,NET,Janes Pantry,24500W
Gloucester City Council,23UE,Environmental Planning,LM340,Contributions,9120,Survey,23/03/2016,415966,1562.5,NET,Sally Strachey Historic Conservation Ltd,14202B
Gloucester City Council,23UE,REDACTED,REDACTED,REDACTED,REDACTED,REDACTED,23/03/2016,REDACTED,350,NET,REDACTED,REDACTED
Gloucester City Council,23UE,REDACTED,REDACTED,REDACTED,REDACTED,REDACTED,23/03/2016,REDACTED,1100,NET,REDACTED,REDACTED
Gloucester City Council,23UE,REDACTED,REDACTED,REDACTED,REDACTED,REDACTED,23/03/2016,REDACTED,100,NET,REDACTED,REDACTED
Gloucester City Council,23UE,REDACTED,REDACTED,REDACTED,REDACTED,REDACTED,23/03/2016,REDACTED,150,NET,REDACTED,REDACTED
Gloucester City Council,23UE,REDACTED,REDACTED,REDACTED,REDACTED,REDACTED,23/03/2016,REDACTED,130,NET,REDACTED,REDACTED
Gloucester City Council,23UE,REDACTED,REDACTED,REDACTED,REDACTED,REDACTED,23/03/2016,REDACTED,130,NET,REDACTED,REDACTED
Gloucester City Council,23UE,REDACTED,REDACTED,REDACTED,REDACTED,REDACTED,23/03/2016,REDACTED,100,NET,REDACTED,REDACTED
Gloucester City Council,23UE,REDACTED,REDACTED,REDACTED,REDACTED,REDACTED,23/03/2016,REDACTED,72,NET,REDACTED,REDACTED
Gloucester City Council,23UE,REDACTED,REDACTED,REDACTED,REDACTED,REDACTED,23/03/2016,REDACTED,72,NET,REDACTED,REDACTED
Gloucester City Council,23UE,Head Of Financial Services,GO100,Vocational Training,2970,2016/17 finance settlement conference,23/03/2016,416204,150,NET,Lg Futures,11251S
Gloucester City Council,23UE,Investment Property,RB500,Repair/Maint Of Fixed Plant,3006,Folk Museum MTC 28/1/16,23/03/2016,415782,144,NET,Axiom Building Services,14908A
Gloucester City Council,23UE,REDACTED,REDACTED,REDACTED,REDACTED,REDACTED,23/03/2016,REDACTED,100,CAP,REDACTED,REDACTED
Gloucester City Council,23UE,The Arbor,HC501,Catering Provisions -Food,5110,food,23/03/2016,416278,198.78,NET,Janes Pantry,24500W
Gloucester City Council,23UE,The Arbor,HC501,Catering Provisions -Food,5110,FOOD,23/03/2016,416205,101.71,NET,Janes Pantry,24500W
Gloucester City Council,23UE,The Arbor,HC501,Catering Provisions -Food,5110,Food w/e 06/03/2016,23/03/2016,415821,169.54,NET,Janes Pantry,24500W
Gloucester City Council,23UE,Business Transformation & Tech,RT700,Computer Hardware Maintenance,5426,Redstor Backups,24/03/2016,416162,17001.92,NET,Civica Uk Ltd,10841X
Gloucester City Council,23UE,Business Transformation & Tech,RT700,Computer Software <5000,5425,Annual Software Support,24/03/2016,415848,825.25,NET,Northgate Public Services Uk Ltd,08982S
Gloucester City Council,23UE,Business Transformation & Tech,RT700,Internet Service Provider Fees,5429,Business Broadband Mar - Apr 2016,24/03/2016,415858,30,NET,Virgin Media Payments Ltd,09376J
Gloucester City Council,23UE,Business Transformation & Tech,RT700,Internet Service Provider Fees,5429,Business Broadband Mar - Apr 2016,24/03/2016,415859,39,NET,Virgin Media Payments Ltd,09376J
Gloucester City Council,23UE,Business Transformation & Tech,RT700,Internet Service Provider Fees,5429,Rental Charges 16/17,24/03/2016,415860,100,NET,Virgin Media Business,01869B
Gloucester City Council,23UE,Business Transformation & Tech,RT700,Mobile Phones,5409,Charges March 2016,24/03/2016,415867,5.27,NET,Everything Everywhere Ltd (T-Mobile),57543S
Gloucester City Council,23UE,Business Transformation & Tech,RT700,Mobile Phones,5409,Charges March 2016,24/03/2016,415868,4.54,NET,Everything Everywhere Ltd (T-Mobile),57543S
Gloucester City Council,23UE,Business Transformation & Tech,RT700,Telephones And Fax,5410,Call Charges February 2016,24/03/2016,415822,3959.81,NET,Gamma Business Communications,10260A
Gloucester City Council,23UE,Business Transformation & Tech,RT700,Telephones And Fax,5410,Call Charges February 2016,24/03/2016,415864,2759.59,NET,Gamma Business Communications,10260A
Gloucester City Council,23UE,REDACTED,REDACTED,REDACTED,REDACTED,REDACTED,24/03/2016,REDACTED,495,NET,REDACTED,REDACTED
Gloucester City Council,23UE,Cemeteries,HC300,Maint Of Grounds - General,3030,Brook Banks,24/03/2016,416151,475,NET,John Hall Funeral Directors,15801L
Gloucester City Council,23UE,Cemeteries,HC300,Maint Of Grounds - General,3030,Engine Oil,24/03/2016,416144,46.63,NET,Garden Machinery Gloucester,55641K
Gloucester City Council,23UE,Cemeteries,HC300,Maint Of Grounds - General,3030,Ground Tracking Boards,24/03/2016,416161,680,NET,Teleshore (Uk) Ltd,56819G
Gloucester City Council,23UE,Cemeteries,HC300,Routine R And M - Vehicles,4011,Caps & Breather,24/03/2016,416143,99.78,NET,Garden Machinery Gloucester,55641K
Gloucester City Council,23UE,Cemeteries,HC300,Routine R And M - Vehicles,4011,Deck Belt,24/03/2016,416109,65.33,NET,Garden Machinery Gloucester,55641K
Gloucester City Council,23UE,Cemeteries,HC300,Routine R And M - Vehicles,4011,Fitting Belt,24/03/2016,416142,45,NET,Garden Machinery Gloucester,55641K
Gloucester City Council,23UE,Cemeteries,HC300,Routine R And M - Vehicles,4011,Grey Dumper Base Plate,24/03/2016,416271,425,NET,Ermin Plant Hire & Services Ltd,14150V
Gloucester City Council,23UE,Cemeteries,HC300,Routine R And M - Vehicles,4011,Repair Puncture,24/03/2016,416110,47.35,NET,Garden Machinery Gloucester,55641K
Gloucester City Council,23UE,City Centre Cctv System,PY275,Contract Payments,20,Charges for CCTV agreement,24/03/2016,416169,500,CAP,Gabbs Solicitors,16427D
Gloucester City Council,23UE,City Museum And Art Gallery,LM200,Advertising And Publicity,5702,event brochure design,24/03/2016,416338,2325,NET,Third Floor Design Ltd,16420U
Gloucester City Council,23UE,City Museum And Art Gallery,LM200,Advertising And Publicity,5702,museums branding,24/03/2016,416339,1723,NET,Third Floor Design Ltd,16420U
Gloucester City Council,23UE,City Museum And Art Gallery,LM200,Advertising And Publicity,5702,museum domain names registration,24/03/2016,416329,225,NET,Third Floor Design Ltd,16420U
Gloucester City Council,23UE,City Museum And Art Gallery,LM200,Advertising And Publicity,5702,visual identity guidelines,24/03/2016,416340,2177.5,NET,Third Floor Design Ltd,16420U
Gloucester City Council,23UE,Client Revs & Bens Contract,RT240,Bailiffs Fees,5368,VAT due on statutory fees,24/03/2016,415967,0,NET,Bristow & Sutor,05450M
Gloucester City Council,23UE,Client Revs & Bens Contract,RT240,Bailiffs Fees,5368,VAT due on statutory fees,24/03/2016,416140,37.85,NET,Bristow & Sutor,05450M
Gloucester City Council,23UE,Client Revs & Bens Contract,RT240,Bailiffs Fees,5368,VAT on statutory fees,24/03/2016,415940,19.73,NET,Bristow & Sutor,05450M
Gloucester City Council,23UE,Client Revs & Bens Contract,RT240,Fees For Services Received,5350,Arrest & Detention of Defaulters,24/03/2016,416164,150,NET,Assevarate Ltd,11749A
Gloucester City Council,23UE,Community Safety Projects,FP500,Other Minor Supplies Services,5590,Charge for Fuel,24/03/2016,416107,516.61,NET,"Police & Crime Commissioner, Gloucestershire",49521B
Gloucester City Council,23UE,Contact Centre,RB300,Operational Equipment <5000,5012,operator chair,24/03/2016,416320,204.03,NET,Lyreco Uk Ltd,11746G
Gloucester City Council,23UE,Contact Centre,RB300,Postages,5400,Post 19/02 - 10/03 2016,24/03/2016,416230,1439.61,NET,Royal Mail S.Wales & South West,35830S
Gloucester City Council,23UE,Contact Centre,RB300,Stationery,5302,stationery,24/03/2016,416318,25.56,NET,Lyreco Uk Ltd,11746G
Gloucester City Council,23UE,Contact Centre,RB300,Stationery,5302,stationery,24/03/2016,416319,23.13,NET,Lyreco Uk Ltd,11746G
Gloucester City Council,23UE,Contact Centre,RB300,Uniforms,5201,Trousers,24/03/2016,416171,41.9,NET,Meltemi Company Clothing Limited,54572N
Gloucester City Council,23UE,Contact Centre,RB300,Uniforms,5201,Various Clothing,24/03/2016,416160,328.7,NET,Meltemi Company Clothing Limited,54572N
Gloucester City Council,23UE,Corporate Reporting /Financing,RC504,Subscriptions,5600,Financial Intelligence toolkit 2016/17,24/03/2016,415613,3990,NET,Lg Futures,11251S
Gloucester City Council,23UE,Council Streetcare Team,HI101,Maint Of Grounds - General,3030,Saversnake Road,24/03/2016,416106,338.84,NET,Greenfields Garden Services Ltd,48130G
Gloucester City Council,23UE,Countryside Unit,LP201,General Repair/Maint Buildings,3000,Deckboard,24/03/2016,416159,41.67,NET,B&Q Trade Account,06346Y
Gloucester City Council,23UE,Countryside Unit,LP201,Maint Of Grounds - General,3030,Woodstock Kiss Gate,24/03/2016,416147,656,NET,Centrewire Ltd,54156P
Gloucester City Council,23UE,Crematorium,HC200,Cleaning Materials,3600,cleaning materials,24/03/2016,416327,311.08,NET,Acs Business Supplies Ltd,15791M
Gloucester City Council,23UE,Crematorium,HC200,Cleaning Materials,3600,Disposal Units,24/03/2016,415964,17.28,NET,Minster Cleaning Services,02158R
Gloucester City Council,23UE,Crematorium,HC200,Cleaning Materials,3600,Sebo Bags,24/03/2016,416136,6.62,NET,John Gillman & Sons (Electrical) Ltd,17625M
Gloucester City Council,23UE,Crematorium,HC200,National Assist Act Burial Exp,5593,Funeral fees,24/03/2016,416150,645,NET,Selim Smith & Co Funeral Directors,15156X
Gloucester City Council,23UE,Crematorium,HC200,Repair/Maint Of Fixed Plant,3006,cremator repair 29/2/16,24/03/2016,416324,244.15,NET,Facultatieve Technologies Ltd,51210H
Gloucester City Council,23UE,Crematorium,HC200,Repair/Maint Of Fixed Plant,3006,Hoover Bags,24/03/2016,416137,11.55,NET,Gillman & Son (Electrical) Ltd,21632RV
Gloucester City Council,23UE,Crematorium,HC200,Repair/Maint Of Fixed Plant,3006,Steel System Scaffold,24/03/2016,416264,1043,NET,Lansford Access Ltd,26320F
Gloucester City Council,23UE,Development Management,PT200,Advertising And Publicity,5702,Advertisement 17/03/2016,24/03/2016,416097,292.16,NET,Local World Ltd,08556P
Gloucester City Council,23UE,REDACTED,REDACTED,REDACTED,REDACTED,REDACTED,24/03/2016,REDACTED,385,NET,REDACTED,REDACTED
Gloucester City Council,23UE,Docks Complex - Catering Servs,RB110,Basic Pay - Duty Assistants,1511,Food,24/03/2016,415969,14.66,NET,Janes Pantry,24500W
Gloucester City Council,23UE,Docks Complex - Catering Servs,RB110,Basic Pay - Duty Assistants,1511,Food,24/03/2016,415970,14.16,NET,Janes Pantry,24500W
Gloucester City Council,23UE,Docks Complex - Catering Servs,RB110,Basic Pay - Duty Assistants,1511,Food,24/03/2016,415972,11,NET,Janes Pantry,24500W
Gloucester City Council,23UE,Docks Complex - Catering Servs,RB110,Basic Pay - Duty Assistants,1511,Food,24/03/2016,415974,14.66,NET,Janes Pantry,24500W
Gloucester City Council,23UE,Docks Complex - Catering Servs,RB110,Basic Pay - Duty Assistants,1511,Food,24/03/2016,415977,18.58,NET,Janes Pantry,24500W
Gloucester City Council,23UE,Docks Complex - Catering Servs,RB110,Basic Pay - Duty Assistants,1511,Food,24/03/2016,415979,13.05,NET,Janes Pantry,24500W
Gloucester City Council,23UE,Docks Complex - Catering Servs,RB110,Basic Pay - Duty Assistants,1511,Food,24/03/2016,415983,11.83,NET,Janes Pantry,24500W
Gloucester City Council,23UE,Docks Complex - Catering Servs,RB110,Basic Pay - Duty Assistants,1511,Food,24/03/2016,415988,21.51,NET,Janes Pantry,24500W
Gloucester City Council,23UE,Docks Complex - Catering Servs,RB110,Catering Provisions -Food,5110,Food,24/03/2016,415968,16.88,NET,Janes Pantry,24500W
Gloucester City Council,23UE,Docks Complex - Catering Servs,RB110,Catering Provisions -Food,5110,Food,24/03/2016,415971,15.78,NET,Janes Pantry,24500W
Gloucester City Council,23UE,Docks Complex - Catering Servs,RB110,Catering Provisions -Food,5110,Food,24/03/2016,415973,12.02,NET,Janes Pantry,24500W
Gloucester City Council,23UE,Docks Complex - Catering Servs,RB110,Catering Provisions -Food,5110,Food,24/03/2016,415976,9,NET,Janes Pantry,24500W
Gloucester City Council,23UE,Docks Complex - Catering Servs,RB110,Catering Provisions -Food,5110,Food,24/03/2016,415978,10.01,NET,Janes Pantry,24500W
Gloucester City Council,23UE,Docks Complex - Catering Servs,RB110,Catering Provisions -Food,5110,Food,24/03/2016,415980,11.2,NET,Janes Pantry,24500W
Gloucester City Council,23UE,Docks Complex - Catering Servs,RB110,Catering Provisions -Food,5110,Food,24/03/2016,415982,21.61,NET,Janes Pantry,24500W
Gloucester City Council,23UE,Docks Complex - Catering Servs,RB110,Catering Provisions -Food,5110,Food,24/03/2016,415984,14.66,NET,Janes Pantry,24500W
Gloucester City Council,23UE,Docks Complex - Catering Servs,RB110,Catering Provisions -Food,5110,Food,24/03/2016,415985,15.7,NET,Janes Pantry,24500W
Gloucester City Council,23UE,Docks Complex - Catering Servs,RB110,Catering Provisions -Food,5110,Food,24/03/2016,415986,7.52,NET,Janes Pantry,24500W
Gloucester City Council,23UE,Docks Complex - Catering Servs,RB110,Catering Provisions -Food,5110,Food,24/03/2016,415987,8.78,NET,Janes Pantry,24500W
Gloucester City Council,23UE,Docks Complex - Services,RB100,Hire Of Equipment,5020,1st Annual Rental,24/03/2016,415850,1980,NET,Cooleraid Ltd,16405P
Gloucester City Council,23UE,Docks Complex - Services,RB100,Hire Of Equipment,5020,Air Freshner 16/17,24/03/2016,415816,1100,NET,Pyramid Hygiene Ltd,01897B
Gloucester City Council,23UE,Docks Complex - Services,RB100,Hire Of Equipment,5020,Rental Apr - Jul 2016,24/03/2016,415934,48.75,NET,Wessex Products (Leasing) Ltd,03684C
Gloucester City Council,23UE,Docks Complex - Services,RB100,Operational Equipment <5000,5012,Water Boiler,24/03/2016,415814,299.99,NET,Nisbets,55372P
Gloucester City Council,23UE,Financial Services,RT200,Fees For Services Received,5350,Kitchen Equipment,24/03/2016,415876,126.8,NET,Nisbets,55372P
Gloucester City Council,23UE,Flooding And Drainage,HE306,Maint Of Grounds - General,3030,Vegetation Works,24/03/2016,416099,135,NET,Rdb Safety Boat Ltd,13507J
Gloucester City Council,23UE,Gates Streets,GY014,Contract Payments,20,Installation of Hollie Gazzard Bench,24/03/2016,414995,723,CAP,Matthew Burt Ltd,15765N
Gloucester City Council,23UE,Gloucester Guildhall,LA100,General Repair/Maint Buildings,3000,door signs,24/03/2016,416322,200.2,NET,Hanman Split Ltd,56889J
Gloucester City Council,23UE,Gloucester Guildhall,LA100,General Repair/Maint Buildings,3000,ticket office header sign,24/03/2016,416323,184,NET,Hanman Split Ltd,56889J
Gloucester City Council,23UE,Gloucester Guildhall,LA100,General Repair/Maint Buildings,3000,window vinyl,24/03/2016,416335,1082,NET,Hanman Split Ltd,56889J
Gloucester City Council,23UE,Grants To Voluntary Sector,FG100,Members Allocation Fund,7100F,fit gates at Robinswood Hill park,24/03/2016,416280,496,NET,Greenfields Garden Services Ltd,48130G
Gloucester City Council,23UE,Grants To Voluntary Sector,FG100,Members Allocation Fund,7100F,Stoner Kiss Gate,24/03/2016,416146,219,NET,Centrewire Ltd,54156P
Gloucester City Council,23UE,Grants To Voluntary Sector,FG100,Members Allocation Fund,7100F,Wildflowers,24/03/2016,416104,120.1,NET,Yellow Flag Wildflowers,02743X
Gloucester City Council,23UE,Guildhall Events,LA200,Advertising And Publicity,5702,Advertisements March 16,24/03/2016,416165,180,NET,Local World Ltd,08556P
Gloucester City Council,23UE,REDACTED,REDACTED,REDACTED,REDACTED,REDACTED,24/03/2016,REDACTED,0,NET,Dmf Music Ltd,08360X
Gloucester City Council,23UE,REDACTED,REDACTED,REDACTED,REDACTED,REDACTED,24/03/2016,REDACTED,0,NET,Dmf Music Ltd,08360X
Gloucester City Council,23UE,REDACTED,REDACTED,REDACTED,REDACTED,REDACTED,24/03/2016,REDACTED,1250,NET,Dmf Music Ltd,08360X
Gloucester City Council,23UE,Guildhall Events,LA200,Printing,5300,APR-MAY16 Guildhall what's on,24/03/2016,416336,962,NET,Color Co,57707K
Gloucester City Council,23UE,Guildhall Lettings,LA400,Events Income,9202,Studio 2 client sessions FEB16,24/03/2016,416341,110,NET,Gloucestershire Music Makers,13755L
Gloucester City Council,23UE,Guildhall Lettings,LA400,Sale Of Goods And Services,9230,Studio 2 client sessions FEB16,24/03/2016,416341,-22,NET,Gloucestershire Music Makers,13755L
Gloucester City Council,23UE,Herbert Reception Upgrade,RY201,Capital General Repairs & Main,13,Replacement Boiler,24/03/2016,416202,13548.47,CAP,Axiom Building Services,14908A
Gloucester City Council,23UE,REDACTED,REDACTED,REDACTED,REDACTED,REDACTED,24/03/2016,REDACTED,1555.46,NET,REDACTED,REDACTED
Gloucester City Council,23UE,Homelessness,CH120,Fees For Services Received,5350,Medical Form,24/03/2016,416139,20.5,NET,London Road Medical Practice,03814P
Gloucester City Council,23UE,Homelessness,CH120,Fees For Services Received,5350,Telephone Interpreting,24/03/2016,416138,39.9,NET,Prime Production Ltd,06262F
Gloucester City Council,23UE,Homelessness,CH120,Removal And Storage Fees,5513,storage fees,24/03/2016,416326,135,NET,Advanced Removals & Storage Ltd,57142R
Gloucester City Council,23UE,Homelessness,CH120,Removal And Storage Fees,5513,storage fees,24/03/2016,416332,405,NET,Advanced Removals & Storage Ltd,57142R
Gloucester City Council,23UE,REDACTED,REDACTED,REDACTED,REDACTED,REDACTED,24/03/2016,REDACTED,489.44,NET,REDACTED,REDACTED
Gloucester City Council,23UE,REDACTED,REDACTED,REDACTED,REDACTED,REDACTED,24/03/2016,REDACTED,368.2,NET,REDACTED,REDACTED
Gloucester City Council,23UE,Homelessness Prevention,CH122,Basic Pay - Temporary Staff,2751,Temps Hours w/e 13/03/2016,24/03/2016,416157,754.22,NET,Greenacre Recruitment Ltd,15817V
Gloucester City Council,23UE,Homelessness Prevention,CH122,Fees For Services Received,5350,medical report,24/03/2016,416334,20.5,NET,Bartongate Surgery,05680S
Gloucester City Council,23UE,REDACTED,REDACTED,REDACTED,REDACTED,REDACTED,24/03/2016,REDACTED,530,NET,REDACTED,REDACTED
Gloucester City Council,23UE,REDACTED,REDACTED,REDACTED,REDACTED,REDACTED,24/03/2016,REDACTED,400,NET,REDACTED,REDACTED
Gloucester City Council,23UE,Investment Property,RB500,Consultants Fees,5349,Professional Fees,24/03/2016,415947,850,NET,Lda Design Consulting Ltd,03500T
Gloucester City Council,23UE,Investment Property,RB500,Fire Fighting Equipment,3008,Takeover of Dry Riser,24/03/2016,416265,313.47,NET,Allcoopers Ltd,52921E
Gloucester City Council,23UE,Investment Property,RB500,Fire Fighting Equipment,3008,Takeover of Wet Riser,24/03/2016,416266,286.47,NET,Allcoopers Ltd,52921E
Gloucester City Council,23UE,Investment Property,RB500,Gas Fittings Serv/Repair,3052,Engineer 03/12/2015,24/03/2016,412275,112.5,NET,Pickerings Europe Ltd,58816U
Gloucester City Council,23UE,Investment Property,RB500,General Repair/Maint Buildings,3000,Site Visit,24/03/2016,413610,500,NET,Studies In Work,54830P
Gloucester City Council,23UE,Kings Quarter,RY146,Contract Payments,20,Kings Qtr planning consultancy,24/03/2016,416325,6898.43,CAP,Gva Grimley,56359W
Gloucester City Council,23UE,REDACTED,REDACTED,REDACTED,REDACTED,REDACTED,24/03/2016,REDACTED,400,NET,REDACTED,REDACTED
Gloucester City Council,23UE,Nms Contract,HI102,Contracted Services,6970,Pensions February 2016,24/03/2016,416105,10888.72,NET,Enterprise (Aol) Ltd,06695G
Gloucester City Council,23UE,Registration Of Electors,RS400,Fees For Services Received,5350,Advertisement 16/03/2016,24/03/2016,416096,321.38,NET,Local World Ltd,08556P
Gloucester City Council,23UE,Registration Of Electors,RS400,Publications,5060,Election Law CD,24/03/2016,416170,187,NET,Thomson Reuters,43110M
Gloucester City Council,23UE,Rehousing,CH111,Fees For Services Received,5350,medical report,24/03/2016,415451,20.5,NET,Bartongate Surgery,05680S
Gloucester City Council,23UE,Rehousing,CH111,Fees For Services Received,5350,medical report,24/03/2016,416333,20.5,NET,Gloucester City Health Centre,02093U
Gloucester City Council,23UE,Rehousing,CH111,Fees For Services Received,5350,Medical Report,24/03/2016,414973,20.5,NET,Gloucester Health Access Centre,11611H
Gloucester City Council,23UE,Robinswoodhill Trading Account,LP203,Maint Of Grounds - General,3030,Butts area tree works & gate fitting,24/03/2016,416279,1986.2,NET,Greenfields Garden Services Ltd,48130G
Gloucester City Council,23UE,Robinswoodhill Trading Account,LP203,Maint Of Grounds - General,3030,Padlocks,24/03/2016,416158,144.6,NET,Gloucester Locksmiths,18160C
Gloucester City Council,23UE,S106 Hempsted Way Play Area,LY156,Contract Payments,20,Various Items,24/03/2016,415944,738,CAP,Centrewire Ltd,54156P
Gloucester City Council,23UE,The Arbor,HC501,Ni - Technical Staff,1559,Works to Mulberry Tea Room,24/03/2016,416234,2000,NET,Chlodel Carpets & Flooring Ltd,12596S
Gloucester City Council,23UE,The Arbor,HC501,Operational Equipment <5000,5012,Works to Mulberry Tea Room,24/03/2016,416234,975,NET,Chlodel Carpets & Flooring Ltd,12596S
Gloucester City Council,23UE,REDACTED,REDACTED,REDACTED,REDACTED,REDACTED,24/03/2016,REDACTED,1195,NET,REDACTED,REDACTED
Gloucester City Council,23UE,REDACTED,REDACTED,REDACTED,REDACTED,REDACTED,24/03/2016,REDACTED,225,NET,REDACTED,REDACTED
Gloucester City Council,23UE,REDACTED,REDACTED,REDACTED,REDACTED,REDACTED,24/03/2016,REDACTED,-99.58,NET,REDACTED,REDACTED
Gloucester City Council,23UE,REDACTED,REDACTED,REDACTED,REDACTED,REDACTED,24/03/2016,REDACTED,-9.38,NET,REDACTED,REDACTED
Gloucester City Council,23UE,Tourism Marketing,LT100,Uniforms,5201,Name Badges,24/03/2016,416134,7.35,NET,Badgemaster Ltd,58525J
Gloucester City Council,23UE,Tourism Marketing,LT100,Uniforms,5201,Various Items,24/03/2016,416108,41.98,NET,Simon Jersey Ltd,40555W
Gloucester City Council,23UE,Tourism Marketing,LT100,Vocational Training,2970,Welcoming Visitors 15/03/16,24/03/2016,416135,30,NET,Purple Cloud Consultancy,12797D
Gloucester City Council,23UE,Townscape Heritage Initiative,LY145,Contract Payments,20,buffet,24/03/2016,416330,157,CAP,Hey Pesto Ltd,14759T
Gloucester City Council,23UE,Unallocated It,RY525,Software Installation,55,Office 365 Phase 1,24/03/2016,416163,30786.79,CAP,Civica Uk Ltd,10841X
Gloucester City Council,23UE,Utilities,PT502,Electricity Supply,3110,Bill 8/03/16 - 11/03/16,24/03/2016,416232,9818.98,NET,West Mercia Energy,11669Z
Gloucester City Council,23UE,Aspire Admin Charges,LC105,Fees For Services Received,5350,Staff Memberships Feb 16,29/03/2016,416187,551,NET,Aspire Sports & Cultural Trust,08135V
Gloucester City Council,23UE,Business Transformation & Tech,RT700,Computer Software Maintenance,5427,Desktop Basic,29/03/2016,416180,3812,NET,Esri (Uk) Ltd,57836X
Gloucester City Council,23UE,Cemeteries,HC300,Maint Of Grounds - General,3030,Spectacles,29/03/2016,416198,59.8,NET,Safpro Industrial Supply Co,39190W
Gloucester City Council,23UE,Cemeteries,HC300,Maint Of Grounds - General,3030,Sweeping Feb & Mar 16,29/03/2016,416141,128,NET,Enterprise (Aol) Ltd,06695G
Gloucester City Council,23UE,City Museum,RY153,Contract Payments,20,Consultancy Fees,29/03/2016,416201,637.5,CAP,Goddard Consulting Llp,10598G
Gloucester City Council,23UE,City Museum And Art Gallery,LM200,Advertising And Publicity,5702,Replace Signage,29/03/2016,416197,250,NET,Donationboxes.Co.Uk Ltd,15798X
Gloucester City Council,23UE,Civica Contract Revs & Bens,RT250,Contracted Services,6970,Pension excess FEB16,29/03/2016,416438,12170.78,NET,Civica Uk Ltd,10841X
Gloucester City Council,23UE,Civica It Contract,RT270,Fees For Services Received,5350,FEB16 pension excess,29/03/2016,416439,796.05,NET,Civica Uk Ltd,10841X
Gloucester City Council,23UE,Client Revs & Bens Contract,RT240,Advertising And Publicity,5702,Advertisement 10/03/2016,29/03/2016,416211,584.32,NET,Local World Ltd,08556P
Gloucester City Council,23UE,Client Revs & Bens Contract,RT240,Fees For Services Received,5350,New Homes Bonus,29/03/2016,413884,13300,NET,Civica Uk Ltd,10841X
Gloucester City Council,23UE,Contact Centre,RB300,Other Minor Supplies Services,5590,Plumber Call Out 03/01/2016,29/03/2016,416173,36.64,NET,Gloucester City Homes,05244T
Gloucester City Council,23UE,Contact Centre,RB300,Stationery,5302,Paper,29/03/2016,416186,451,NET,Premier Paper Group Ltd,09166Y
Gloucester City Council,23UE,Contact Centre,RB300,Stationery,5302,Stationary,29/03/2016,416184,31.68,NET,Lyreco Uk Ltd,11746G
Gloucester City Council,23UE,Contact Centre,RB300,Uniforms,5201,Clothing,29/03/2016,416216,536.73,NET,Meltemi Company Clothing Limited,54572N
Gloucester City Council,23UE,Countryside Unit,LP201,General Repair/Maint Buildings,3000,Robinswood Hill Quarry signs,29/03/2016,416425,285.8,NET,Five Valley Signs & Labels Limited,09642L
Gloucester City Council,23UE,Countryside Unit,LP201,Maint Of Grounds - General,3030,Various Items,29/03/2016,416172,3.76,NET,Garden Machinery Gloucester,55641K
Gloucester City Council,23UE,Countryside Unit,LP201,Major R And M - Vehicles,4010,PTO Guard,29/03/2016,416181,66,NET,A C Belting Ltd,00250X
Gloucester City Council,23UE,Crematorium,HC200,Book Of Memory,5055,Site Visit 07/03/2016,29/03/2016,416190,68.84,NET,Hilton Cabinet Co Ltd,21910A
Gloucester City Council,23UE,Development Management,PT200,Basic Pay - Temporary Staff,2751,temporary staff w/e 06/03/2016,29/03/2016,415961,1309.6,NET,The Oyster Partnership Limited,14900T
Gloucester City Council,23UE,Development Management,PT200,Basic Pay - Temporary Staff,2751,Temporary staff w/e 13/03/2016,29/03/2016,416168,1199.6,NET,The Oyster Partnership Limited,14900T
Gloucester City Council,23UE,Docks Complex - Services,RB100,Smoke Vents,3060,Engineer & Various Items,29/03/2016,416001,2338,NET,Airvent Systems Limited,51073T
Gloucester City Council,23UE,Economic Development,FP300,Business Grant,7116,Balance of grant fees,29/03/2016,416415,500,NET,Cedars Health And Beauty Centre,15493Z
Gloucester City Council,23UE,Environmental Planning,LM340,Operational Materials,5070,Implanter Services - 09/03/2016,29/03/2016,416174,200,NET,REDACTED,REDACTED
Gloucester City Council,23UE,REDACTED,REDACTED,REDACTED,REDACTED,REDACTED,29/03/2016,REDACTED,0,NET,REDACTED,REDACTED
Gloucester City Council,23UE,Flex Replacement,LY160,Contract Payments,20,Services Feb 16,29/03/2016,416217,9000,CAP,Toptix (Uk) Ltd,16411V
Gloucester City Council,23UE,Grants To Voluntary Sector,FG100,Members Allocation Fund,7100F,Hawthorn Seat,29/03/2016,416189,402,NET,Streetmaster Products,00534D
Gloucester City Council,23UE,Guildhall Events,LA200,Advertising And Publicity,5702,Advertisement Feb 16,29/03/2016,416226,180,NET,Local World Ltd,08556P
Gloucester City Council,23UE,Guildhall Events,LA200,Fees For Services Received,5350,Lighting Technician,29/03/2016,416269,120,NET,Connect Electrical Contracting,12405D
Gloucester City Council,23UE,REDACTED,REDACTED,REDACTED,REDACTED,REDACTED,29/03/2016,REDACTED,440,NET,REDACTED,REDACTED
Gloucester City Council,23UE,Head Of Regeneration & Eco Dev,GO102,Fees For Services Received,5350,VAT Advice 14/03/2016,29/03/2016,416191,675,NET,Lavat Consulting Ltd,02836N
Gloucester City Council,23UE,Homelessness,CH120,Board And Lodging,5515,various tenants,29/03/2016,416446,1609,NET,James Legge Property (Ltd),07844R
Gloucester City Council,23UE,Homelessness,CH120,Board And Lodging,5515,various tenants,29/03/2016,416448,368.63,NET,Kalmwood Ltd,08568G
Gloucester City Council,23UE,Homelessness,CH120,Board And Lodging,5515,various tenants,29/03/2016,416447,1004.39,NET,Carbrey Housing Ltd,11098G
Gloucester City Council,23UE,Homelessness,CH120,Board And Lodging,5515,various tenants,29/03/2016,416445,6971.63,NET,REDACTED,REDACTED
Gloucester City Council,23UE,Homelessness,CH120,Board And Lodging,5515,various tenants,29/03/2016,416450,2593.62,NET,Dorchester Guest House,12298D
Gloucester City Council,23UE,REDACTED,REDACTED,REDACTED,REDACTED,REDACTED,29/03/2016,REDACTED,2867,NET,REDACTED,REDACTED
Gloucester City Council,23UE,REDACTED,REDACTED,REDACTED,REDACTED,REDACTED,29/03/2016,REDACTED,2272.4,NET,REDACTED,REDACTED
Gloucester City Council,23UE,Housing Strategy & Enabling,CH110,Vocational Training,2970,training course 13/04/2016,29/03/2016,416193,295,NET,Public Policy Exchange,16417G
Gloucester City Council,23UE,Investment Property,RB500,Internal Decs - Communal Areas,3050,Call Out 29/01/16,29/03/2016,416021,87.5,NET,Stannah Lift Services Ltd,41700C
Gloucester City Council,23UE,Licences,HE510,Gating Orders,5541,Windrush Way Gate,29/03/2016,416262,575.7,NET,Rf Gardiner Limited,12299B
Gloucester City Council,23UE,Meet & Greet,FP309,Advertising And Publicity,5702,T-shirts,29/03/2016,416176,41.75,NET,The Print Room,15674G
Gloucester City Council,23UE,Meet & Greet,FP309,Advertising And Publicity,5702,T-shirts,29/03/2016,416182,16.7,NET,The Print Room,15674G
Gloucester City Council,23UE,Nms Contract,HI102,Additional Non-Tender Items,6973,Recycling Leaflets,29/03/2016,416203,309,NET,In2print Ltd,55471L
Gloucester City Council,23UE,Nms Contract,HI102,Operational Materials,5070,Refuse Sacks,29/03/2016,416188,903,NET,Polystar Plastics Ltd,01120C
Gloucester City Council,23UE,Parks Contract Management,LP100,Maint Of Grounds - General,3030,Glos Park - Rubber Grips on climber,29/03/2016,416261,64.45,NET,Enterprise (Aol) Ltd,06695G
Gloucester City Council,23UE,Parks Contract Management,LP100,Maint Of Grounds - General,3030,Repairs to Longlevens play area,29/03/2016,416443,300,NET,Sunshine Playgrounds Ltd,14958J
Gloucester City Council,23UE,Planning Policy & Heritage,PT300,Basic Pay - Temporary Staff,2751,temporary staff w/e 06/03/2016,29/03/2016,415962,2266.42,NET,The Oyster Partnership Limited,14900T
Gloucester City Council,23UE,Planning Policy & Heritage,PT300,Basic Pay - Temporary Staff,2751,temporary staff w/e 13/03/2016,29/03/2016,416167,906.57,NET,The Oyster Partnership Limited,14900T
Gloucester City Council,23UE,Play Area Refurbishment,LY071,Contract Payments,20,play area equipment,29/03/2016,416420,6741.6,CAP,Kompan Ltd,03575J
Gloucester City Council,23UE,Play Area Refurbishment,LY071,Contract Payments,20,play area equipment,29/03/2016,416421,6741.6,CAP,Kompan Ltd,03575J
Gloucester City Council,23UE,Play Area Refurbishment,LY071,Contract Payments,20,supply Alma Place MUGA,29/03/2016,416444,5423.5,CAP,Sunshine Playgrounds Ltd,14958J
Gloucester City Council,23UE,Pollution Control,HE300,Fees For Services Received,5350,attend site re warrant execution,29/03/2016,416419,60,NET,Severnside Security Ltd,14661M
Gloucester City Council,23UE,Pollution Control,HE300,Fees For Services Received,5350,disposal of Citroen Saxo,29/03/2016,416427,110,NET,Harry Buckland,16135W
Gloucester City Council,23UE,Pollution Control,HE300,Fees For Services Received,5350,disposal of Ford Focus,29/03/2016,416433,680,NET,Harry Buckland,16135W
Gloucester City Council,23UE,Pollution Control,HE300,Fees For Services Received,5350,disposal of moped,29/03/2016,416431,100,NET,Harry Buckland,16135W
Gloucester City Council,23UE,Pollution Control,HE300,Fees For Services Received,5350,disposal of Moped,29/03/2016,416430,100,NET,Harry Buckland,16135W
Gloucester City Council,23UE,Pollution Control,HE300,Fees For Services Received,5350,disposal of Nissan Almera,29/03/2016,416429,80,NET,Harry Buckland,16135W
Gloucester City Council,23UE,Pollution Control,HE300,Fees For Services Received,5350,disposal of Seat Ibiza,29/03/2016,416432,80,NET,Harry Buckland,16135W
Gloucester City Council,23UE,Pollution Control,HE300,Fees For Services Received,5350,disposal of Shogun,29/03/2016,416428,220,NET,Harry Buckland,16135W
Gloucester City Council,23UE,Pollution Control,HE300,Fees For Services Received,5350,disposal of Vauxhall Corsa,29/03/2016,416424,160,NET,Harry Buckland,16135W
Gloucester City Council,23UE,Registration Of Electors,RS400,Fees For Services Received,5350,Annual Council Tax Booklets,29/03/2016,416213,1403.2,NET,Cheltenham Borough Council,04176B
Gloucester City Council,23UE,Registration Of Electors,RS400,Fees For Services Received,5350,Wooden Voting Screen,29/03/2016,416212,1524.7,NET,Shaw & Sons Ltd,40310F
Gloucester City Council,23UE,Retail Market - Landlord,HM300,Window Cleaning,3610,Monthly Window Clean,29/03/2016,416200,140,NET,Cornwall Cleaning Services,14050A
Gloucester City Council,23UE,S106 Hempsted Way Play Area,LY156,Contract Payments,20,Hempsted Playing Field,29/03/2016,416199,2800,CAP,Greenfields Garden Services Ltd,48130G
Gloucester City Council,23UE,Tourism Marketing,LT100,Other Minor Supplies Services,5590,Water Cooler Rental,29/03/2016,416177,110,NET,Cooleraid Ltd,16405P
Gloucester City Council,23UE,Tourism Marketing,LT100,Vocational Training,2970,Welcoming Visitors - 03/03/2016,29/03/2016,416183,45,NET,Purple Cloud Consultancy,12797D
Gloucester City Council,23UE,Unallocated It,RY525,It Software,57,Intelligent Scanning,29/03/2016,416100,6800,CAP,Civica Uk Ltd,10841X
Gloucester City Council,23UE,Vehicles,RS140,Fuel,4012,Fuel,29/03/2016,416233,214.91,NET,Allstar Business Solutions Ltd (Arval),06594A
Gloucester City Council,23UE,Vehicles,RS140,Fuel,4012,vehicle fuel,29/03/2016,416434,118.78,NET,Allstar Business Solutions Ltd (Arval),06594A
Gloucester City Council,23UE,Westgate Leisure Area S106,LY155,Contract Payments,20,Westgate Park works,29/03/2016,416416,17665.52,CAP,Rf Gardiner Limited,12299B
Gloucester City Council,23UE,Business Transformation & Tech,RT700,Computer Hardware <5000,5420,22 Touch monitor,30/03/2016,416556,150,NET,Dell Computers Corporation Ltd,55920C
Gloucester City Council,23UE,Business Transformation & Tech,RT700,Computer Software Maintenance,5427,Nova-HX Gloucester City JUL15-JUN16,30/03/2016,416196,4595,NET,Abritas Ltd,10222J
Gloucester City Council,23UE,Business Transformation & Tech,RT700,Licences,5703,Payment Portal 50%,30/03/2016,416570,2525,NET,Capita Business Services Limited,54095C
Gloucester City Council,23UE,Cemeteries,HC300,Maint Of Grounds - General,3030,tarp,30/03/2016,416568,190,NET,Spaldings,48759Y
Gloucester City Council,23UE,Cemeteries,HC300,Other Minor Supplies Services,5590,spade handle,30/03/2016,416567,72,NET,Spaldings,48759Y
Gloucester City Council,23UE,City Museum And Art Gallery,LM200,Other Minor Supplies Services,5590,mediaval pouches & belts,30/03/2016,416581,215,NET,REDACTED,REDACTED
Gloucester City Council,23UE,Council Streetcare Team,HI101,Maint Of Grounds - General,3030,Road Closure Signs,30/03/2016,416149,449,NET,Alpha Colour Printers Ltd,00945B
Gloucester City Council,23UE,Crematorium,HC200,Memorial Plaques,5053,plaques,30/03/2016,416551,615,NET,Arkell & Hurcombe,59812T
Gloucester City Council,23UE,Crematorium,HC200,Memorial Plaques,5053,plaques,30/03/2016,416552,708,NET,Arkell & Hurcombe,59812T
Gloucester City Council,23UE,Crematorium,HC200,Memorial Plaques,5053,plaques,30/03/2016,416553,402,NET,Arkell & Hurcombe,59812T
Gloucester City Council,23UE,Food Safety,HE100,Fees For Services Received,5350,environmental health laundry,30/03/2016,416583,25,NET,Iron Maidens,02180Y
Gloucester City Council,23UE,General Drainage Works,PY241,Contract Payments,20,Survey & Reporting Works,30/03/2016,414287,1179,CAP,Jba Consulting,15841Y
Gloucester City Council,23UE,Gloucester Guildhall,LA100,General Repair/Maint Buildings,3000,equipment hire 10/12/14,30/03/2016,415176,221.5,NET,Uss Unique Sound Systems Ltd,59571S
Gloucester City Council,23UE,Gloucester Guildhall,LA100,Maintenance Of Equipment,5030,"22MM SWITCHES, RELAY",30/03/2016,416530,44.29,NET,Cpc,52980M
Gloucester City Council,23UE,Grants To Voluntary Sector,FG100,Members Allocation Fund,7100F,Duo spinger,30/03/2016,416505,1045,NET,Proludic Ltd,03576G
Gloucester City Council,23UE,Guildhall Bar And Caf�,LA210,Catering Provisions -Food,5110,food,30/03/2016,416206,83,NET,Janes Pantry,24500W
Gloucester City Council,23UE,Guildhall Bar And Caf�,LA210,Catering Provisions -Food,5110,food,30/03/2016,416508,26.8,NET,Janes Pantry,24500W
Gloucester City Council,23UE,REDACTED,REDACTED,REDACTED,REDACTED,REDACTED,30/03/2016,REDACTED,110,NET,REDACTED,REDACTED
Gloucester City Council,23UE,REDACTED,REDACTED,REDACTED,REDACTED,REDACTED,30/03/2016,REDACTED,450,NET,REDACTED,REDACTED
Gloucester City Council,23UE,REDACTED,REDACTED,REDACTED,REDACTED,REDACTED,30/03/2016,REDACTED,595,NET,REDACTED,REDACTED
Gloucester City Council,23UE,REDACTED,REDACTED,REDACTED,REDACTED,REDACTED,30/03/2016,REDACTED,280,NET,REDACTED,REDACTED
Gloucester City Council,23UE,Guildhall Lettings,LA400,Hire Of Equipment,5020,equipment hire 10/12/14,30/03/2016,415176,280,NET,Uss Unique Sound Systems Ltd,59571S
Gloucester City Council,23UE,Health Administration,HA200,Medical Expenses,2950,Phonak V70,30/03/2016,416507,2000,NET,Hearing For Life,59359S
Gloucester City Council,23UE,Hempsted Market/Car Boot,HM234,Maint Of Grounds - General,3030,Main Works,30/03/2016,415873,3984.8,NET,Talus Construction Ltd,10401G
Gloucester City Council,23UE,Homelessness,CH120,Fees For Services Received,5350,medical report,30/03/2016,416542,20.5,NET,Gloucester City Health Centre,02093U
Gloucester City Council,23UE,Homelessness,CH120,Removal And Storage Fees,5513,storage fees,30/03/2016,416538,39.11,NET,Advanced Removals & Storage Ltd,57142R
Gloucester City Council,23UE,Homelessness,CH120,Removal And Storage Fees,5513,storage fees,30/03/2016,416539,20.57,NET,Advanced Removals & Storage Ltd,57142R
Gloucester City Council,23UE,Homelessness,CH120,Removal And Storage Fees,5513,storage fees,30/03/2016,416540,39.11,NET,Advanced Removals & Storage Ltd,57142R
Gloucester City Council,23UE,Homelessness,CH120,Removal And Storage Fees,5513,storage fees,30/03/2016,416541,78.21,NET,Advanced Removals & Storage Ltd,57142R
Gloucester City Council,23UE,Homelessness,CH120,Removal And Storage Fees,5513,storage fees,30/03/2016,416543,46.29,NET,Advanced Removals & Storage Ltd,57142R
Gloucester City Council,23UE,Homelessness,CH120,Removal And Storage Fees,5513,storage fees,30/03/2016,416544,168.75,NET,Advanced Removals & Storage Ltd,57142R
Gloucester City Council,23UE,REDACTED,REDACTED,REDACTED,REDACTED,REDACTED,30/03/2016,REDACTED,560,NET,REDACTED,REDACTED
Gloucester City Council,23UE,REDACTED,REDACTED,REDACTED,REDACTED,REDACTED,30/03/2016,REDACTED,600,NET,REDACTED,REDACTED
Gloucester City Council,23UE,Housing Works In Default,HD500,Clearance And Cleansing Fees,5384,Parliament St clearance & cleaning,30/03/2016,416509,5090,NET,Rj Contracting (Environmental) Ltd,07429H
Gloucester City Council,23UE,Investment Property,RB500,General Repair/Maint Buildings,3000,Repairs,30/03/2016,416267,240,NET,J M Grail (General Engineering) Ltd,03204A
Gloucester City Council,23UE,Kings Quarter,RY146,Contract Payments,20,Bus Station traffic info works,30/03/2016,416518,565,CAP,Aecom Ltd,12443V
Gloucester City Council,23UE,Kings Quarter,RY146,Contract Payments,20,Charges Jan - Feb 2016,30/03/2016,416145,2194,CAP,Bevan Brittan,06630Y
Gloucester City Council,23UE,Licences,HE510,Gating Orders,5541,Replace Manhole cover,30/03/2016,415820,405,NET,Three Counties Drain Service,44033V
Gloucester City Council,23UE,Parks Contract Management,LP100,Maint Of Grounds - General,3030,pedal assembly,30/03/2016,416558,435.6,NET,Hags-Smp Ltd,00672P
Gloucester City Council,23UE,Parks Contract Management,LP100,Maint Of Grounds - General,3030,play area equipment,30/03/2016,416559,1305.94,NET,Sutcliffe Play (Southwest) Ltd,02238S
Gloucester City Council,23UE,Parks Contract Management,LP100,Maint Of Grounds - General,3030,TANGO SEAT ASSEMBLY,30/03/2016,416534,605,NET,Hags-Smp Ltd,00672P
Gloucester City Council,23UE,Play Area Refurbishment,LY071,Contract Payments,20,low rotator,30/03/2016,416560,1845,CAP,Sutcliffe Play (Southwest) Ltd,02238S
Gloucester City Council,23UE,Play Area Refurbishment,LY071,Contract Payments,20,Twiny Springer,30/03/2016,416504,3070,CAP,Proludic Ltd,03576G
Gloucester City Council,23UE,REDACTED,REDACTED,REDACTED,REDACTED,REDACTED,30/03/2016,REDACTED,5000,CAP,REDACTED,REDACTED
Gloucester City Council,23UE,REDACTED,REDACTED,REDACTED,REDACTED,REDACTED,30/03/2016,REDACTED,22607.46,NET,REDACTED,REDACTED
Gloucester City Council,23UE,The Arbor,HC501,Catering Provisions -Food,5110,wine for resale,30/03/2016,416554,25.74,NET,Cellar Supplies Cheltenham Ltd,01563L
Gloucester City Council,23UE,The Arbor,HC501,Other Minor Supplies Services,5590,cleaning vases & renewing flowers,30/03/2016,416578,25,NET,Carols Florist,01274X
Gloucester City Council,23UE,The Arbor,HC501,Other Minor Supplies Services,5590,flowers,30/03/2016,416580,25,NET,Carols Florist,01274X
Gloucester City Council,23UE,The Arbor,HC501,Other Minor Supplies Services,5590,flowers,30/03/2016,416592,25,NET,Carols Florist,01274X
Gloucester City Council,23UE,The Arbor,HC501,Other Minor Supplies Services,5590,flowers,30/03/2016,416593,25,NET,Carols Florist,01274X
Gloucester City Council,23UE,The Arbor,HC501,Other Minor Supplies Services,5590,provision of flowers,30/03/2016,416579,37.5,NET,Carols Florist,01274X
Gloucester City Council,23UE,Tree Planting Grant Funded,LY150,Contract Payments,20,replace tree adj Gloucester Library,30/03/2016,416442,342,CAP,Greenfields Garden Services Ltd,48130G
Gloucester City Council,23UE,Cemeteries,HC300,Basic Pay - Temporary Staff,2751,temporary staff w/e 06/03/2016,31/03/2016,416224,439.88,NET,Premiere Employment Group Ltd,55468Z
Gloucester City Council,23UE,Cemeteries,HC300,Basic Pay - Temporary Staff,2751,temporary staff w/e 06/03/2016,31/03/2016,416225,439.88,NET,Premiere Employment Group Ltd,55468Z
Gloucester City Council,23UE,Council Streetcare Team,HI101,Maint Of Grounds - General,3030,repair vehicle access gates,31/03/2016,416662,564,NET,Greenfields Garden Services Ltd,48130G
Gloucester City Council,23UE,Disabled Facilities Grants,CY013,Disabled Facility Grants,74,re MDF5151 final fee,31/03/2016,416665,6064.71,CAP,Mears Home Improvement Ltd,00096G
Gloucester City Council,23UE,Disabled Facilities Grants,CY013,Disabled Facility Grants,74,re MDF5163 final fee,31/03/2016,416667,5436.18,CAP,Mears Home Improvement Ltd,00096G
Gloucester City Council,23UE,Economic Development,FP300,Consultants Fees,5349,ED Strategic Review work,31/03/2016,416611,3750,NET,Hardisty Jones Associates,15809U
Gloucester City Council,23UE,Environmental Planning,LM340,Repair/Maint Of Monuments,3004,Chelsea Lantern LA,31/03/2016,416612,234.17,NET,Broughtons Of Leicester Ltd,16434G
Gloucester City Council,23UE,Gloucester Guildhall,LA100,Security Equipment Serv/Repair,3038,install updated cctv system,31/03/2016,416652,2490,NET,Eke Security Ltd,11519W
Gloucester City Council,23UE,Grants To Voluntary Sector,FG100,Members Allocation Fund,7100F,Grant for events,31/03/2016,416663,416.67,NET,Wotton Hall Club,08356R
Gloucester City Council,23UE,Hackney Carriages,HL100,Other Minor Supplies Services,5590,licence plate set - private hire,31/03/2016,416423,512.9,NET,Mogo Uk,56615B
Gloucester City Council,23UE,Homelessness,CH120,Rent In Advance,5516,ria & deposit,31/03/2016,416658,368.2,NET,Acorn Residential Lettings,16600P
Gloucester City Council,23UE,REDACTED,REDACTED,REDACTED,REDACTED,REDACTED,31/03/2016,REDACTED,489.44,NET,REDACTED,REDACTED
Gloucester City Council,23UE,Homelessness Prevention,CH122,Fees For Services Received,5350,ria & deposit,31/03/2016,416658,395,NET,Acorn Residential Lettings,16600P
Gloucester City Council,23UE,REDACTED,REDACTED,REDACTED,REDACTED,REDACTED,31/03/2016,REDACTED,530,NET,REDACTED,REDACTED
Gloucester City Council,23UE,REDACTED,REDACTED,REDACTED,REDACTED,REDACTED,31/03/2016,REDACTED,500,NET,REDACTED,REDACTED
Gloucester City Council,23UE,Homelessness Prevention,CH122,Grants To Advice Centres,7100,homepess emergency beds APR-JUN16,31/03/2016,416650,2546.5,NET,P3 (People Potential Possibilities),13809N
Gloucester City Council,23UE,Interpretation & Signage,GY012,Contract Payments,20,Eastgate Chamber Signage,31/03/2016,415807,1148,CAP,Rivermeade Signs Ltd,15854N
Gloucester City Council,23UE,Investment Property,RB500,Gas Fittings Serv/Repair,3052,Investigate Flue system,31/03/2016,416270,1696.62,NET,Axiom Building Services,14908A
Gloucester City Council,23UE,Investment Property,RB500,Lift Maintenance,3051,Eastgate Market lift,31/03/2016,416651,8353.71,NET,Pickerings Europe Ltd,58816U
Gloucester City Council,23UE,Licences,HE510,Fees For Services Received,5350,11/01/16 Vetinary Inspection,31/03/2016,416613,193.67,NET,Rebecca Sherman,15504W
Gloucester City Council,23UE,Off Street Car Parks,PP110,Computer Software Maintenance,5427,DVLA Enquiry Service,31/03/2016,414523,48.3,NET,Chipside Ltd,06535T
Gloucester City Council,23UE,Off Street Car Parks,PP110,Computer Software Maintenance,5427,MiPermit Cashless Parking Fees,31/03/2016,416235,1504.17,NET,Chipside Ltd,06535T
Gloucester City Council,23UE,Off Street Car Parks,PP110,Computer Software Maintenance,5427,MI Permit Charge,31/03/2016,414522,1549.51,NET,Chipside Ltd,06535T
Gloucester City Council,23UE,Off Street Car Parks,PP110,Computer Software Maintenance,5427,Mi Permit Fee Dec 15,31/03/2016,414524,890.83,NET,Chipside Ltd,06535T
Gloucester City Council,23UE,Parks Contract Management,LP100,Maint Of Grounds - General,3030,Scott Avenue & Seventh Avenue,31/03/2016,415869,106.84,NET,Enterprise (Aol) Ltd,06695G
Gloucester City Council,23UE,Planning Policy & Heritage,PT300,Basic Pay - Temporary Staff,2751,temporary staff w/e 20/3/16,31/03/2016,416549,906.56,NET,The Oyster Partnership Limited,14900T
Gloucester City Council,23UE,Play Area Refurbishment,LY071,Contract Payments,20,Duncroft Road play area retention,31/03/2016,416661,1506.15,CAP,Greenfields Garden Services Ltd,48130G
Gloucester City Council,23UE,Play Area Refurbishment,LY071,Contract Payments,20,Glevum Way Open space safety surfacing,31/03/2016,416660,2000,CAP,Greenfields Garden Services Ltd,48130G
Gloucester City Council,23UE,Play Area Refurbishment,LY071,Contract Payments,20,refurbish play area,31/03/2016,416649,766.98,CAP,Greenfields Garden Services Ltd,48130G
Gloucester City Council,23UE,Rugby World Cup,LT450,Fees For Services Received,5350,Kings Square toilet hire,31/03/2016,416648,405,NET,B & W Hire Ltd,55477Y
Gloucester City Council,23UE,The Arbor,HC501,Catering Provisions -Food,5110,Food,31/03/2016,416584,125.26,NET,Total Produce Gloucester,12645E
Gloucester City Council,23UE,The Arbor,HC501,Catering Provisions -Food,5110,Food,31/03/2016,416585,39.78,NET,Total Produce Gloucester,12645E
Gloucester City Council,23UE,The Arbor,HC501,Catering Provisions -Food,5110,Food,31/03/2016,416586,74.76,NET,Total Produce Gloucester,12645E
Gloucester City Council,23UE,The Arbor,HC501,Catering Provisions -Food,5110,Food,31/03/2016,416587,34.58,NET,Total Produce Gloucester,12645E
Gloucester City Council,23UE,The Arbor,HC501,Catering Provisions -Food,5110,Food,31/03/2016,416588,63.78,NET,Total Produce Gloucester,12645E
Gloucester City Council,23UE,The Arbor,HC501,Catering Provisions -Food,5110,Food,31/03/2016,416610,467.17,NET,Bidvest Foodservice (3663),55585U
Gloucester City Council,23UE,The Arbor,HC501,Catering Provisions -Food,5110,food,31/03/2016,416647,8.82,NET,Total Produce Gloucester,12645E
Gloucester City Council,23UE,Unallocated It,RY525,Contract Payments,20,CCN025 PSN REMEDIAL WORKS,31/03/2016,416531,61752.02,CAP,Civica Uk Ltd,10841X
Gloucester City Council,23UE,Unallocated It,RY525,Contract Payments,20,CCN028 EXCHANGE REMEDIAL WORKS,31/03/2016,416532,9917.8,CAP,Civica Uk Ltd,10841X
Gloucester City Council,23UE,Unallocated It,RY525,Contract Payments,20,Expenses Feb 16,31/03/2016,416179,158.4,CAP,Civica Uk Ltd,10841X
Gloucester City Council,23UE,Alney Island,PY128,Contract Payments,20,Alney Island management plan,,416426,790,CAP,Gloucestershire Wildlife Management,49628F
Gloucester City Council,23UE,Asset Management,RS300,Basic Pay - Temporary Staff,2751,FEB16 project engineer services,,416750,3775.15,NET,Ecostep Ltd,15511Z
Gloucester City Council,23UE,Business Transformation & Tech,RT700,Photocopying,5320,plotter maintenance,,416728,97.16,NET,Stanford Marsh Ltd,51139M
Gloucester City Council,23UE,Cemeteries,HC300,Maint Of Grounds - General,3030,grease gun hose,,416753,44.6,NET,Spaldings,48759Y
Gloucester City Council,23UE,Client Revs & Bens Contract,RT240,Bailiffs Fees,5368,vat only invoice,,416653,0,NET,Bristow & Sutor,05450M
Gloucester City Council,23UE,Client Revs & Bens Contract,RT240,Bailiffs Fees,5368,VAt only invoice,,416654,0,NET,Bristow & Sutor,05450M
Gloucester City Council,23UE,Client Revs & Bens Contract,RT240,Bailiffs Fees,5368,VAT only invoice,,416655,0,NET,Bristow & Sutor,05450M
Gloucester City Council,23UE,Contact Centre,RB300,Postages,5400,DL envelopes,,416733,109,NET,Encore Envelopes Ltd,13782H
Gloucester City Council,23UE,Contact Centre,RB300,Postages,5400,DL envelopes,,416751,211.26,NET,Encore Envelopes Ltd,13782H
Gloucester City Council,23UE,Contact Centre,RB300,Postages,5400,DL envelopes 1st class,,416732,110.5,NET,Encore Envelopes Ltd,13782H
Gloucester City Council,23UE,Council Streetcare Team,HI101,Water Supply,3400,ACCT 6480048672,,414400,268.75,NET,Severn Trent Water,01823H
Gloucester City Council,23UE,Countryside Unit,LP201,Water Supply,3400,ACCT 2140100635,,413750,33.4,NET,Severn Trent Water,01823H
Gloucester City Council,23UE,Development Management,PT200,Basic Pay - Temporary Staff,2751,temporary staff w/e 20/3/16,,416548,1203.65,NET,The Oyster Partnership Limited,14900T
Gloucester City Council,23UE,Dog Warden,HE400,Fees For Services Received,5350,JAN16 dog warden service,,416740,994,NET,Bromsgrove District Council,15754U
Gloucester City Council,23UE,Environmental Planning,LM340,Fees For Services Received,5350,River Twyver vegetation management,,416422,3252,NET,Gloucestershire Wildlife Management,49628F
Gloucester City Council,23UE,Financial Services,RT200,Subscriptions,5600,finaicial modelling consultancy,,416739,1250,NET,Stroud District Council,42500D
Gloucester City Council,23UE,General Works Fund,RY203,Contract Payments,20,Eastgate car park lighting,,416754,4828.25,CAP,Esl,15795D
Gloucester City Council,23UE,Head Of Regeneration & Eco Dev,GO102,Consultants Fees,5349,land train operation,,416745,295,NET,Lakeandland T/A Land Train Hire Nationwide,16431N
Gloucester City Council,23UE,Homelessness,CH120,Board And Lodging,5515,housing placement,,416737,245,NET,Connolly And Callaghan Ltd,07565Y
Gloucester City Council,23UE,Homelessness,CH120,Board And Lodging,5515,housing placement,,416738,105,NET,Connolly And Callaghan Ltd,07565Y
Gloucester City Council,23UE,Human Resources,EH100,Fees For Services Received,5350,FEB16 payroll charges,,416314,2628.65,NET,Gloucestershire County Council,18650D
Gloucester City Council,23UE,Internal Audit,RT300,Fees For Services Received,5350,Internal Audit & Risk Mgmt service,,416316,48795,NET,Gloucestershire County Council,18650D
Gloucester City Council,23UE,Investment Property,RB500,Advertising And Publicity,5702,re land at St Oswalds,,416748,235,NET,Alder King,02367D
Gloucester City Council,23UE,Kings Quarter,RY146,Contract Payments,20,102 NORTHGATE ST,,408174,350,CAP,Ken Pink Plant Hire Ltd,56884V
Gloucester City Council,23UE,Marketing Gloucester Charges,RC433,Events,5952,Event Programme,,416084,25000,NET,Marketing Gloucester Ltd,62815RV
Gloucester City Council,23UE,Meet & Greet,FP309,Advertising And Publicity,5702,advertisement,,416749,200,NET,Diversified Business Communications Uk Ltd,15016R
Gloucester City Council,23UE,Off Street Car Parks,PP110,Fees For Services Received,5350,services for parking equipment FEB-APR16,,416747,505.1,NET,Parkeon Ltd,03238G
Gloucester City Council,23UE,Off Street Car Parks,PP110,General Repair/Maint Buildings,3000,CAR PARK WORKS,,416276,650,NET,Roadmark Ltd,37743T
Gloucester City Council,23UE,Off Street Car Parks,PP110,General Repair/Maint Buildings,3000,Kings Sq car park works,,416277,350,NET,Roadmark Ltd,37743T
Gloucester City Council,23UE,Pollution Control,HE300,Fees For Services Received,5350,contaminated land work JAN16,,416742,1713.6,NET,Bromsgrove District Council,15037G
Gloucester City Council,23UE,Pollution Control,HE300,Fees For Services Received,5350,Pollution prevention work,,416741,1231.4,NET,Bromsgrove District Council,15037G
Gloucester City Council,23UE,Statutory Testing,RS310,Fees For Services Received,5350,line charges JAN15-MAR16,,416736,1942.29,NET,Adt Fire & Security Plc,54086D
Gloucester City Council,23UE,Statutory Testing,RS310,Fire Alarms,3027,Lightning Protection Systems,,414016,3816,NET,G & S Steeplejacks Ltd,14575F
Gloucester City Council,23UE,The Arbor,HC501,Catering Provisions -Food,5110,Food,,416591,7.8,NET,Total Produce Gloucester,12645E
Gloucester City Council,23UE,The Arbor,HC501,Catering Provisions -Food,5110,Food,,416594,19.08,NET,Total Produce Gloucester,12645E
Gloucester City Council,23UE,The Arbor,HC501,Catering Provisions -Food,5110,Food,,416595,45.4,NET,Total Produce Gloucester,12645E
Gloucester City Council,23UE,The Arbor,HC501,Catering Provisions -Food,5110,Food,,416596,28.45,NET,Total Produce Gloucester,12645E
Gloucester City Council,23UE,The Arbor,HC501,Catering Provisions -Food,5110,Food,,416597,57.75,NET,Total Produce Gloucester,12645E
Gloucester City Council,23UE,The Arbor,HC501,Catering Provisions -Food,5110,Food,,416598,19.84,NET,Total Produce Gloucester,12645E
Gloucester City Council,23UE,The Arbor,HC501,Catering Provisions -Food,5110,Food,,416599,25.21,NET,Total Produce Gloucester,12645E
Gloucester City Council,23UE,The Arbor,HC501,Catering Provisions -Food,5110,Food,,416600,67.12,NET,Total Produce Gloucester,12645E
Gloucester City Council,23UE,The Arbor,HC501,Catering Provisions -Food,5110,Food,,416601,44.9,NET,Total Produce Gloucester,12645E
Gloucester City Council,23UE,The Arbor,HC501,Catering Provisions -Food,5110,Food,,416602,290.71,NET,Bidvest Foodservice (3663),55585U
Gloucester City Council,23UE,The Arbor,HC501,Catering Provisions -Food,5110,Food,,416603,90.53,NET,Bidvest Foodservice (3663),55585U
Gloucester City Council,23UE,Tic Trading,LT110,Materials For Sale,5080,Belle Rose Pig,,416436,288,NET,Keel Toys,57684W
Gloucester City Council,23UE,Tic Trading,LT110,Publications For Sale,5064,goods for resale,,416744,532.02,NET,David Whyman Map Sales,02653Z
Gloucester City Council,23UE,Tic Trading,LT110,Trade Refuse Sacks,5040,trade sacks,,416730,1848.8,NET,Enterprise (Aol) Ltd,06695G
Gloucester City Council,23UE,Tic Trading,LT110,Trade Refuse Sacks,5040,trade sacks,,416731,1848.8,NET,Enterprise (Aol) Ltd,06695G
Gloucester City Council,23UE,Utilities,PT502,Electricity Supply,3110,Electricity Bill,,416228,37.65,NET,Edf Energy,05038Y
,,,,,,,,Sum:,4032272.48,,,
